Workbook

Sheet Ventes
A2: DATES | B2: CLIENTS | C2: PRODUITS | D2: PRIX UNITAIRE (FCFA) | E2: QUANTITE | F2: Prix d'achat | G2: Pays | H2: Région | I2: mois | J2: semaine
A3: 2021-01-01 | B3: client33 | C3: Produit24 | D3: 156.96 | E3: 9 | F3: =ventes[[#This Row],[PRIX UNITAIRE (FCFA)]]*ventes[[#This Row],[QUANTITE]] -> 1412.64 | G3: =VLOOKUP(ventes[[#This Row],[CLIENTS]],localisations[],2,0) -> Philippines | H3: =VLOOKUP(ventes[[#This Row],[CLIENTS]],localisations[],3,0) -> Asie | I3: =TEXT(ventes[[#This Row],[DATES]],"mmm") -> janv | J3: =WEEKNUM(ventes[[#This Row],[DATES]]) -> 1
A4: 2021-01-01 | B4: client29 | C4: Produit22 | D4: 141.57 | E4: 1 | F4: =ventes[[#This Row],[PRIX UNITAIRE (FCFA)]]*ventes[[#This Row],[QUANTITE]] -> 141.57 | G4: =VLOOKUP(ventes[[#This Row],[CLIENTS]],localisations[],2,0) -> Chili | H4: =VLOOKUP(ventes[[#This Row],[CLIENTS]],localisations[],3,0) -> Amérique | I4: =TEXT(ventes[[#This Row],[DATES]],"mmm") -> janv | J4: =WEEKNUM(ventes[[#This Row],[DATES]]) -> 1
A5: 2021-01-02 | B5: client31 | C5: Produit38 | D5: 79.92 | E5: 15 | F5: =ventes[[#This Row],[PRIX UNITAIRE (FCFA)]]*ventes[[#This Row],[QUANTITE]] -> 1198.8 | G5: =VLOOKUP(ventes[[#This Row],[CLIENTS]],localisations[],2,0) -> Corée du Sud | H5: =VLOOKUP(ventes[[#This Row],[CLIENTS]],localisations[],3,0) -> Asie | I5: =TEXT(ventes[[#This Row],[DATES]],"mmm") -> janv | J5: =WEEKNUM(ventes[[#This Row],[DATES]]) -> 1
A6: 2021-01-02 | B6: client03 | C6: Produit33 | D6: 119.7 | E6: 1 | F6: =ventes[[#This Row],[PRIX UNITAIRE (FCFA)]]*ventes[[#This Row],[QUANTITE]] -> 119.7 | G6: =VLOOKUP(ventes[[#This Row],[CLIENTS]],localisations[],2,0) -> Côte d'Ivoire | H6: =VLOOKUP(ventes[[#This Row],[CLIENTS]],localisations[],3,0) -> Afrique | I6: =TEXT(ventes[[#This Row],[DATES]],"mmm") -> janv | J6: =WEEKNUM(ventes[[#This Row],[DATES]]) -> 1
A7: 2021-01-02 | B7: client05 | C7: Produit15 | D7: 15.72 | E7: 2 | F7: =ventes[[#This Row],[PRIX UNITAIRE (FCFA)]]*ventes[[#This Row],[QUANTITE]] -> 31.44 | G7: =VLOOKUP(ventes[[#This Row],[CLIENTS]],localisations[],2,0) -> Algérie | H7: =VLOOKUP(ventes[[#This Row],[CLIENTS]],localisations[],3,0) -> Afrique | I7: =TEXT(ventes[[#This Row],[DATES]],"mmm") -> janv | J7: =WEEKNUM(ventes[[#This Row],[DATES]]) -> 1
A8: 2021-01-02 | B8: client35 | C8: Produit10 | D8: 164.28 | E8: 7 | F8: =ventes[[#This Row],[PRIX UNITAIRE (FCFA)]]*ventes[[#This Row],[QUANTITE]] -> 1149.96 | G8: =VLOOKUP(ventes[[#This Row],[CLIENTS]],localisations[],2,0) -> Malaisie | H8: =VLOOKUP(ventes[[#This Row],[CLIENTS]],localisations[],3,0) -> Asie | I8: =TEXT(ventes[[#This Row],[DATES]],"mmm") -> janv | J8: =WEEKNUM(ventes[[#This Row],[DATES]]) -> 1
A9: 2021-01-02 | B9: client38 | C9: Produit13 | D9: 122.08 | E9: 6 | F9: =ventes[[#This Row],[PRIX UNITAIRE (FCFA)]]*ventes[[#This Row],[QUANTITE]] -> 732.48 | G9: =VLOOKUP(ventes[[#This Row],[CLIENTS]],localisations[],2,0) -> Pakistan | H9: =VLOOKUP(ventes[[#This Row],[CLIENTS]],localisations[],3,0) -> Asie | I9: =TEXT(ventes[[#This Row],[DATES]],"mmm") -> janv | J9: =WEEKNUM(ventes[[#This Row],[DATES]]) -> 1
A10: 2021-01-02 | B10: client39 | C10: Produit15 | D10: 15.72 | E10: 25 | F10: =ventes[[#This Row],[PRIX UNITAIRE (FCFA)]]*ventes[[#This Row],[QUANTITE]] -> 393 | G10: =VLOOKUP(ventes[[#This Row],[CLIENTS]],localisations[],2,0) -> Pakistan | H10: =VLOOKUP(ventes[[#This Row],[CLIENTS]],localisations[],3,0) -> Asie | I10: =TEXT(ventes[[#This Row],[DATES]],"mmm") -> janv | J10: =WEEKNUM(ventes[[#This Row],[DATES]]) -> 1
A11: 2021-01-03 | B11: client34 | C11: Produit14 | D11: 146.72 | E11: 21 | F11: =ventes[[#This Row],[PRIX UNITAIRE (FCFA)]]*ventes[[#This Row],[QUANTITE]] -> 3081.12 | G11: =VLOOKUP(ventes[[#This Row],[CLIENTS]],localisations[],2,0) -> Japon | H11: =VLOOKUP(ventes[[#This Row],[CLIENTS]],localisations[],3,0) -> Asie | I11: =TEXT(ventes[[#This Row],[DATES]],"mmm") -> janv | J11: =WEEKNUM(ventes[[#This Row],[DATES]]) -> 2
A12: 2021-01-03 | B12: client18 | C12: Produit43 | D12: 83.08 | E12: 9 | F12: =ventes[[#This Row],[PRIX UNITAIRE (FCFA)]]*ventes[[#This Row],[QUANTITE]] -> 747.72 | G12: =VLOOKUP(ventes[[#This Row],[CLIENTS]],localisations[],2,0) -> Belgique | H12: =VLOOKUP(ventes[[#This Row],[CLIENTS]],localisations[],3,0) -> Europe | I12: =TEXT(ventes[[#This Row],[DATES]],"mmm") -> janv | J12: =WEEKNUM(ventes[[#This Row],[DATES]]) -> 2
A13: 2021-01-03 | B13: client20 | C13: Produit38 | D13: 79.92 | E13: 31 | F13: =ventes[[#This Row],[PRIX UNITAIRE (FCFA)]]*ventes[[#This Row],[QUANTITE]] -> 2477.52 | G13: =VLOOKUP(ventes[[#This Row],[CLIENTS]],localisations[],2,0) -> France | H13: =VLOOKUP(ventes[[#This Row],[CLIENTS]],localisations[],3,0) -> Europe | I13: =TEXT(ventes[[#This Row],[DATES]],"mmm") -> janv | J13: =WEEKNUM(ventes[[#This Row],[DATES]]) -> 2
A14: 2021-01-03 | B14: client37 | C14: Produit04 | D14: 48.84 | E14: 5 | F14: =ventes[[#This Row],[PRIX UNITAIRE (FCFA)]]*ventes[[#This Row],[QUANTITE]] -> 244.2 | G14: =VLOOKUP(ventes[[#This Row],[CLIENTS]],localisations[],2,0) -> Inde | H14: =VLOOKUP(ventes[[#This Row],[CLIENTS]],localisations[],3,0) -> Asie | I14: =TEXT(ventes[[#This Row],[DATES]],"mmm") -> janv | J14: =WEEKNUM(ventes[[#This Row],[DATES]]) -> 2
A15: 2021-01-04 | B15: client32 | C15: Produit29 | D15: 53.11 | E15: 1 | F15: =ventes[[#This Row],[PRIX UNITAIRE (FCFA)]]*ventes[[#This Row],[QUANTITE]] -> 53.11 | G15: =VLOOKUP(ventes[[#This Row],[CLIENTS]],localisations[],2,0) -> Indonésie | H15: =VLOOKUP(ventes[[#This Row],[CLIENTS]],localisations[],3,0) -> Asie | I15: =TEXT(ventes[[#This Row],[DATES]],"mmm") -> janv | J15: =WEEKNUM(ventes[[#This Row],[DATES]]) -> 2
A16: 2021-01-04 | B16: client09 | C16: Produit12 | D16: 94.17 | E16: 8 | F16: =ventes[[#This Row],[PRIX UNITAIRE (FCFA)]]*ventes[[#This Row],[QUANTITE]] -> 753.36 | G16: =VLOOKUP(ventes[[#This Row],[CLIENTS]],localisations[],2,0) -> Égypte | H16: =VLOOKUP(ventes[[#This Row],[CLIENTS]],localisations[],3,0) -> Afrique | I16: =TEXT(ventes[[#This Row],[DATES]],"mmm") -> janv | J16: =WEEKNUM(ventes[[#This Row],[DATES]]) -> 2
A17: 2021-01-04 | B17: client26 | C17: Produit35 | D17: 6.7 | E17: 12 | F17: =ventes[[#This Row],[PRIX UNITAIRE (FCFA)]]*ventes[[#This Row],[QUANTITE]] -> 80.4 | G17: =VLOOKUP(ventes[[#This Row],[CLIENTS]],localisations[],2,0) -> Pérou | H17: =VLOOKUP(ventes[[#This Row],[CLIENTS]],localisations[],3,0) -> Amérique | I17: =TEXT(ventes[[#This Row],[DATES]],"mmm") -> janv | J17: =WEEKNUM(ventes[[#This Row],[DATES]]) -> 2
A18: 2021-01-06 | B18: client06 | C18: Produit32 | D18: 117.48 | E18: 9 | F18: =ventes[[#This Row],[PRIX UNITAIRE (FCFA)]]*ventes[[#This Row],[QUANTITE]] -> 1057.32 | G18: =VLOOKUP(ventes[[#This Row],[CLIENTS]],localisations[],2,0) -> Afrique du Sud | H18: =VLOOKUP(ventes[[#This Row],[CLIENTS]],localisations[],3,0) -> Afrique | I18: =TEXT(ventes[[#This Row],[DATES]],"mmm") -> janv | J18: =WEEKNUM(ventes[[#This Row],[DATES]]) -> 2
A19: 2021-01-08 | B19: client09 | C19: Produit19 | D19: 210 | E19: 14 | F19: =ventes[[#This Row],[PRIX UNITAIRE (FCFA)]]*ventes[[#This Row],[QUANTITE]] -> 2940 | G19: =VLOOKUP(ventes[[#This Row],[CLIENTS]],localisations[],2,0) -> Égypte | H19: =VLOOKUP(ventes[[#This Row],[CLIENTS]],localisations[],3,0) -> Afrique | I19: =TEXT(ventes[[#This Row],[DATES]],"mmm") -> janv | J19: =WEEKNUM(ventes[[#This Row],[DATES]]) -> 2
A20: 2021-01-09 | B20: client01 | C20: Produit07 | D20: 47.73 | E20: 26 | F20: =ventes[[#This Row],[PRIX UNITAIRE (FCFA)]]*ventes[[#This Row],[QUANTITE]] -> 1240.98 | G20: =VLOOKUP(ventes[[#This Row],[CLIENTS]],localisations[],2,0) -> Tunisie | H20: =VLOOKUP(ventes[[#This Row],[CLIENTS]],localisations[],3,0) -> Afrique | I20: =TEXT(ventes[[#This Row],[DATES]],"mmm") -> janv | J20: =WEEKNUM(ventes[[#This Row],[DATES]]) -> 2
A21: 2021-01-09 | B21: client05 | C21: Produit31 | D21: 104.16 | E21: 1 | F21: =ventes[[#This Row],[PRIX UNITAIRE (FCFA)]]*ventes[[#This Row],[QUANTITE]] -> 104.16 | G21: =VLOOKUP(ventes[[#This Row],[CLIENTS]],localisations[],2,0) -> Algérie | H21: =VLOOKUP(ventes[[#This Row],[CLIENTS]],localisations[],3,0) -> Afrique | I21: =TEXT(ventes[[#This Row],[DATES]],"mmm") -> janv | J21: =WEEKNUM(ventes[[#This Row],[DATES]]) -> 2
A22: 2021-01-09 | B22: client34 | C22: Produit25 | D22: 8.33 | E22: 4 | F22: =ventes[[#This Row],[PRIX UNITAIRE (FCFA)]]*ventes[[#This Row],[QUANTITE]] -> 33.32 | G22: =VLOOKUP(ventes[[#This Row],[CLIENTS]],localisations[],2,0) -> Japon | H22: =VLOOKUP(ventes[[#This Row],[CLIENTS]],localisations[],3,0) -> Asie | I22: =TEXT(ventes[[#This Row],[DATES]],"mmm") -> janv | J22: =WEEKNUM(ventes[[#This Row],[DATES]]) -> 2
A23: 2021-01-09 | B23: client16 | C23: Produit31 | D23: 104.16 | E23: 29 | F23: =ventes[[#This Row],[PRIX UNITAIRE (FCFA)]]*ventes[[#This Row],[QUANTITE]] -> 3020.64 | G23: =VLOOKUP(ventes[[#This Row],[CLIENTS]],localisations[],2,0) -> Royaume-Uni | H23: =VLOOKUP(ventes[[#This Row],[CLIENTS]],localisations[],3,0) -> Europe | I23: =TEXT(ventes[[#This Row],[DATES]],"mmm") -> janv | J23: =WEEKNUM(ventes[[#This Row],[DATES]]) -> 2
A24: 2021-01-09 | B24: client19 | C24: Produit40 | D24: 115.2 | E24: 28 | F24: =ventes[[#This Row],[PRIX UNITAIRE (FCFA)]]*ventes[[#This Row],[QUANTITE]] -> 3225.6 | G24: =VLOOKUP(ventes[[#This Row],[CLIENTS]],localisations[],2,0) -> Suisse | H24: =VLOOKUP(ventes[[#This Row],[CLIENTS]],localisations[],3,0) -> Europe | I24: =TEXT(ventes[[#This Row],[DATES]],"mmm") -> janv | J24: =WEEKNUM(ventes[[#This Row],[DATES]]) -> 2
A25: 2021-01-09 | B25: client20 | C25: Produit03 | D25: 80.94 | E25: 8 | F25: =ventes[[#This Row],[PRIX UNITAIRE (FCFA)]]*ventes[[#This Row],[QUANTITE]] -> 647.52 | G25: =VLOOKUP(ventes[[#This Row],[CLIENTS]],localisations[],2,0) -> France | H25: =VLOOKUP(ventes[[#This Row],[CLIENTS]],localisations[],3,0) -> Europe | I25: =TEXT(ventes[[#This Row],[DATES]],"mmm") -> janv | J25: =WEEKNUM(ventes[[#This Row],[DATES]]) -> 2
A26: 2021-01-09 | B26: client36 | C26: Produit32 | D26: 117.48 | E26: 12 | F26: =ventes[[#This Row],[PRIX UNITAIRE (FCFA)]]*ventes[[#This Row],[QUANTITE]] -> 1409.76 | G26: =VLOOKUP(ventes[[#This Row],[CLIENTS]],localisations[],2,0) -> Vietnam | H26: =VLOOKUP(ventes[[#This Row],[CLIENTS]],localisations[],3,0) -> Asie | I26: =TEXT(ventes[[#This Row],[DATES]],"mmm") -> janv | J26: =WEEKNUM(ventes[[#This Row],[DATES]]) -> 2
A27: 2021-01-10 | B27: client03 | C27: Produit02 | D27: 142.8 | E27: 24 | F27: =ventes[[#This Row],[PRIX UNITAIRE (FCFA)]]*ventes[[#This Row],[QUANTITE]] -> 3427.2 | G27: =VLOOKUP(ventes[[#This Row],[CLIENTS]],localisations[],2,0) -> Côte d'Ivoire | H27: =VLOOKUP(ventes[[#This Row],[CLIENTS]],localisations[],3,0) -> Afrique | I27: =TEXT(ventes[[#This Row],[DATES]],"mmm") -> janv | J27: =WEEKNUM(ventes[[#This Row],[DATES]]) -> 3
A28: 2021-01-10 | B28: client21 | C28: Produit34 | D28: 58.3 | E28: 14 | F28: =ventes[[#This Row],[PRIX UNITAIRE (FCFA)]]*ventes[[#This Row],[QUANTITE]] -> 816.2 | G28: =VLOOKUP(ventes[[#This Row],[CLIENTS]],localisations[],2,0) -> Venezuela | H28: =VLOOKUP(ventes[[#This Row],[CLIENTS]],localisations[],3,0) -> Amérique | I28: =TEXT(ventes[[#This Row],[DATES]],"mmm") -> janv | J28: =WEEKNUM(ventes[[#This Row],[DATES]]) -> 3
A29: 2021-01-10 | B29: client36 | C29: Produit35 | D29: 6.7 | E29: 9 | F29: =ventes[[#This Row],[PRIX UNITAIRE (FCFA)]]*ventes[[#This Row],[QUANTITE]] -> 60.3 | G29: =VLOOKUP(ventes[[#This Row],[CLIENTS]],localisations[],2,0) -> Vietnam | H29: =VLOOKUP(ventes[[#This Row],[CLIENTS]],localisations[],3,0) -> Asie | I29: =TEXT(ventes[[#This Row],[DATES]],"mmm") -> janv | J29: =WEEKNUM(ventes[[#This Row],[DATES]]) -> 3
A30: 2021-01-11 | B30: client03 | C30: Produit37 | D30: 85.76 | E30: 3 | F30: =ventes[[#This Row],[PRIX UNITAIRE (FCFA)]]*ventes[[#This Row],[QUANTITE]] -> 257.28 | G30: =VLOOKUP(ventes[[#This Row],[CLIENTS]],localisations[],2,0) -> Côte d'Ivoire | H30: =VLOOKUP(ventes[[#This Row],[CLIENTS]],localisations[],3,0) -> Afrique | I30: =TEXT(ventes[[#This Row],[DATES]],"mmm") -> janv | J30: =WEEKNUM(ventes[[#This Row],[DATES]]) -> 3
A31: 2021-01-11 | B31: client11 | C31: Produit14 | D31: 146.72 | E31: 4 | F31: =ventes[[#This Row],[PRIX UNITAIRE (FCFA)]]*ventes[[#This Row],[QUANTITE]] -> 586.88 | G31: =VLOOKUP(ventes[[#This Row],[CLIENTS]],localisations[],2,0) -> Espagne | H31: =VLOOKUP(ventes[[#This Row],[CLIENTS]],localisations[],3,0) -> Europe | I31: =TEXT(ventes[[#This Row],[DATES]],"mmm") -> janv | J31: =WEEKNUM(ventes[[#This Row],[DATES]]) -> 3
A32: 2021-01-11 | B32: client34 | C32: Produit11 | D32: 48.4 | E32: 14 | F32: =ventes[[#This Row],[PRIX UNITAIRE (FCFA)]]*ventes[[#This Row],[QUANTITE]] -> 677.6 | G32: =VLOOKUP(ventes[[#This Row],[CLIENTS]],localisations[],2,0) -> Japon | H32: =VLOOKUP(ventes[[#This Row],[CLIENTS]],localisations[],3,0) -> Asie | I32: =TEXT(ventes[[#This Row],[DATES]],"mmm") -> janv | J32: =WEEKNUM(ventes[[#This Row],[DATES]]) -> 3
A33: 2021-01-11 | B33: client17 | C33: Produit42 | D33: 162 | E33: 4 | F33: =ventes[[#This Row],[PRIX UNITAIRE (FCFA)]]*ventes[[#This Row],[QUANTITE]] -> 648 | G33: =VLOOKUP(ventes[[#This Row],[CLIENTS]],localisations[],2,0) -> Suède | H33: =VLOOKUP(ventes[[#This Row],[CLIENTS]],localisations[],3,0) -> Europe | I33: =TEXT(ventes[[#This Row],[DATES]],"mmm") -> janv | J33: =WEEKNUM(ventes[[#This Row],[DATES]]) -> 3
A34: 2021-01-11 | B34: client20 | C34: Produit32 | D34: 117.48 | E34: 2 | F34: =ventes[[#This Row],[PRIX UNITAIRE (FCFA)]]*ventes[[#This Row],[QUANTITE]] -> 234.96 | G34: =VLOOKUP(ventes[[#This Row],[CLIENTS]],localisations[],2,0) -> France | H34: =VLOOKUP(ventes[[#This Row],[CLIENTS]],localisations[],3,0) -> Europe | I34: =TEXT(ventes[[#This Row],[DATES]],"mmm") -> janv | J34: =WEEKNUM(ventes[[#This Row],[DATES]]) -> 3
A35: 2021-01-12 | B35: client05 | C35: Produit42 | D35: 162 | E35: 10 | F35: =ventes[[#This Row],[PRIX UNITAIRE (FCFA)]]*ventes[[#This Row],[QUANTITE]] -> 1620 | G35: =VLOOKUP(ventes[[#This Row],[CLIENTS]],localisations[],2,0) -> Algérie | H35: =VLOOKUP(ventes[[#This Row],[CLIENTS]],localisations[],3,0) -> Afrique | I35: =TEXT(ventes[[#This Row],[DATES]],"mmm") -> janv | J35: =WEEKNUM(ventes[[#This Row],[DATES]]) -> 3
A36: 2021-01-13 | B36: client31 | C36: Produit16 | D36: 16.64 | E36: 15 | F36: =ventes[[#This Row],[PRIX UNITAIRE (FCFA)]]*ventes[[#This Row],[QUANTITE]] -> 249.6 | G36: =VLOOKUP(ventes[[#This Row],[CLIENTS]],localisations[],2,0) -> Corée du Sud | H36: =VLOOKUP(ventes[[#This Row],[CLIENTS]],localisations[],3,0) -> Asie | I36: =TEXT(ventes[[#This Row],[DATES]],"mmm") -> janv | J36: =WEEKNUM(ventes[[#This Row],[DATES]]) -> 3
A37: 2021-01-13 | B37: client06 | C37: Produit19 | D37: 210 | E37: 6 | F37: =ventes[[#This Row],[PRIX UNITAIRE (FCFA)]]*ventes[[#This Row],[QUANTITE]] -> 1260 | G37: =VLOOKUP(ventes[[#This Row],[CLIENTS]],localisations[],2,0) -> Afrique du Sud | H37: =VLOOKUP(ventes[[#This Row],[CLIENTS]],localisations[],3,0) -> Afrique | I37: =TEXT(ventes[[#This Row],[DATES]],"mmm") -> janv | J37: =WEEKNUM(ventes[[#This Row],[DATES]]) -> 3
A38: 2021-01-14 | B38: client38 | C38: Produit11 | D38: 48.4 | E38: 14 | F38: =ventes[[#This Row],[PRIX UNITAIRE (FCFA)]]*ventes[[#This Row],[QUANTITE]] -> 677.6 | G38: =VLOOKUP(ventes[[#This Row],[CLIENTS]],localisations[],2,0) -> Pakistan | H38: =VLOOKUP(ventes[[#This Row],[CLIENTS]],localisations[],3,0) -> Asie | I38: =TEXT(ventes[[#This Row],[DATES]],"mmm") -> janv | J38: =WEEKNUM(ventes[[#This Row],[DATES]]) -> 3
A39: 2021-01-15 | B39: client14 | C39: Produit07 | D39: 47.73 | E39: 15 | F39: =ventes[[#This Row],[PRIX UNITAIRE (FCFA)]]*ventes[[#This Row],[QUANTITE]] -> 715.95 | G39: =VLOOKUP(ventes[[#This Row],[CLIENTS]],localisations[],2,0) -> Pays-Bas | H39: =VLOOKUP(ventes[[#This Row],[CLIENTS]],localisations[],3,0) -> Europe | I39: =TEXT(ventes[[#This Row],[DATES]],"mmm") -> janv | J39: =WEEKNUM(ventes[[#This Row],[DATES]]) -> 3
A40: 2021-01-15 | B40: client20 | C40: Produit22 | D40: 141.57 | E40: 10 | F40: =ventes[[#This Row],[PRIX UNITAIRE (FCFA)]]*ventes[[#This Row],[QUANTITE]] -> 1415.7 | G40: =VLOOKUP(ventes[[#This Row],[CLIENTS]],localisations[],2,0) -> France | H40: =VLOOKUP(ventes[[#This Row],[CLIENTS]],localisations[],3,0) -> Europe | I40: =TEXT(ventes[[#This Row],[DATES]],"mmm") -> janv | J40: =WEEKNUM(ventes[[#This Row],[DATES]]) -> 3
A41: 2021-01-16 | B41: client32 | C41: Produit14 | D41: 146.72 | E41: 11 | F41: =ventes[[#This Row],[PRIX UNITAIRE (FCFA)]]*ventes[[#This Row],[QUANTITE]] -> 1613.92 | G41: =VLOOKUP(ventes[[#This Row],[CLIENTS]],localisations[],2,0) -> Indonésie | H41: =VLOOKUP(ventes[[#This Row],[CLIENTS]],localisations[],3,0) -> Asie | I41: =TEXT(ventes[[#This Row],[DATES]],"mmm") -> janv | J41: =WEEKNUM(ventes[[#This Row],[DATES]]) -> 3
A42: 2021-01-17 | B42: client08 | C42: Produit40 | D42: 115.2 | E42: 4 | F42: =ventes[[#This Row],[PRIX UNITAIRE (FCFA)]]*ventes[[#This Row],[QUANTITE]] -> 460.8 | G42: =VLOOKUP(ventes[[#This Row],[CLIENTS]],localisations[],2,0) -> Maroc | H42: =VLOOKUP(ventes[[#This Row],[CLIENTS]],localisations[],3,0) -> Afrique | I42: =TEXT(ventes[[#This Row],[DATES]],"mmm") -> janv | J42: =WEEKNUM(ventes[[#This Row],[DATES]]) -> 4
A43: 2021-01-18 | B43: client06 | C43: Produit08 | D43: 94.62 | E43: 9 | F43: =ventes[[#This Row],[PRIX UNITAIRE (FCFA)]]*ventes[[#This Row],[QUANTITE]] -> 851.58 | G43: =VLOOKUP(ventes[[#This Row],[CLIENTS]],localisations[],2,0) -> Afrique du Sud | H43: =VLOOKUP(ventes[[#This Row],[CLIENTS]],localisations[],3,0) -> Afrique | I43: =TEXT(ventes[[#This Row],[DATES]],"mmm") -> janv | J43: =WEEKNUM(ventes[[#This Row],[DATES]]) -> 4
A44: 2021-01-18 | B44: client19 | C44: Produit23 | D44: 149.46 | E44: 3 | F44: =ventes[[#This Row],[PRIX UNITAIRE (FCFA)]]*ventes[[#This Row],[QUANTITE]] -> 448.38 | G44: =VLOOKUP(ventes[[#This Row],[CLIENTS]],localisations[],2,0) -> Suisse | H44: =VLOOKUP(ventes[[#This Row],[CLIENTS]],localisations[],3,0) -> Europe | I44: =TEXT(ventes[[#This Row],[DATES]],"mmm") -> janv | J44: =WEEKNUM(ventes[[#This Row],[DATES]]) -> 4
A45: 2021-01-18 | B45: client24 | C45: Produit44 | D45: 82.08 | E45: 13 | F45: =ventes[[#This Row],[PRIX UNITAIRE (FCFA)]]*ventes[[#This Row],[QUANTITE]] -> 1067.04 | G45: =VLOOKUP(ventes[[#This Row],[CLIENTS]],localisations[],2,0) -> Équateur | H45: =VLOOKUP(ventes[[#This Row],[CLIENTS]],localisations[],3,0) -> Amérique | I45: =TEXT(ventes[[#This Row],[DATES]],"mmm") -> janv | J45: =WEEKNUM(ventes[[#This Row],[DATES]]) -> 4
A46: 2021-01-19 | B46: client20 | C46: Produit35 | D46: 6.7 | E46: 6 | F46: =ventes[[#This Row],[PRIX UNITAIRE (FCFA)]]*ventes[[#This Row],[QUANTITE]] -> 40.2 | G46: =VLOOKUP(ventes[[#This Row],[CLIENTS]],localisations[],2,0) -> France | H46: =VLOOKUP(ventes[[#This Row],[CLIENTS]],localisations[],3,0) -> Europe | I46: =TEXT(ventes[[#This Row],[DATES]],"mmm") -> janv | J46: =WEEKNUM(ventes[[#This Row],[DATES]]) -> 4
A47: 2021-01-20 | B47: client09 | C47: Produit34 | D47: 58.3 | E47: 4 | F47: =ventes[[#This Row],[PRIX UNITAIRE (FCFA)]]*ventes[[#This Row],[QUANTITE]] -> 233.2 | G47: =VLOOKUP(ventes[[#This Row],[CLIENTS]],localisations[],2,0) -> Égypte | H47: =VLOOKUP(ventes[[#This Row],[CLIENTS]],localisations[],3,0) -> Afrique | I47: =TEXT(ventes[[#This Row],[DATES]],"mmm") -> janv | J47: =WEEKNUM(ventes[[#This Row],[DATES]]) -> 4
A48: 2021-01-20 | B48: client35 | C48: Produit20 | D48: 76.25 | E48: 4 | F48: =ventes[[#This Row],[PRIX UNITAIRE (FCFA)]]*ventes[[#This Row],[QUANTITE]] -> 305 | G48: =VLOOKUP(ventes[[#This Row],[CLIENTS]],localisations[],2,0) -> Malaisie | H48: =VLOOKUP(ventes[[#This Row],[CLIENTS]],localisations[],3,0) -> Asie | I48: =TEXT(ventes[[#This Row],[DATES]],"mmm") -> janv | J48: =WEEKNUM(ventes[[#This Row],[DATES]]) -> 4
A49: 2021-01-20 | B49: client18 | C49: Produit21 | D49: 162.54 | E49: 2 | F49: =ventes[[#This Row],[PRIX UNITAIRE (FCFA)]]*ventes[[#This Row],[QUANTITE]] -> 325.08 | G49: =VLOOKUP(ventes[[#This Row],[CLIENTS]],localisations[],2,0) -> Belgique | H49: =VLOOKUP(ventes[[#This Row],[CLIENTS]],localisations[],3,0) -> Europe | I49: =TEXT(ventes[[#This Row],[DATES]],"mmm") -> janv | J49: =WEEKNUM(ventes[[#This Row],[DATES]]) -> 4
A50: 2021-01-20 | B50: client25 | C50: Produit14 | D50: 146.72 | E50: 7 | F50: =ventes[[#This Row],[PRIX UNITAIRE (FCFA)]]*ventes[[#This Row],[QUANTITE]] -> 1027.04 | G50: =VLOOKUP(ventes[[#This Row],[CLIENTS]],localisations[],2,0) -> Brésil | H50: =VLOOKUP(ventes[[#This Row],[CLIENTS]],localisations[],3,0) -> Amérique | I50: =TEXT(ventes[[#This Row],[DATES]],"mmm") -> janv | J50: =WEEKNUM(ventes[[#This Row],[DATES]]) -> 4
A51: 2021-01-21 | B51: client36 | C51: Produit04 | D51: 48.84 | E51: 15 | F51: =ventes[[#This Row],[PRIX UNITAIRE (FCFA)]]*ventes[[#This Row],[QUANTITE]] -> 732.6 | G51: =VLOOKUP(ventes[[#This Row],[CLIENTS]],localisations[],2,0) -> Vietnam | H51: =VLOOKUP(ventes[[#This Row],[CLIENTS]],localisations[],3,0) -> Asie | I51: =TEXT(ventes[[#This Row],[DATES]],"mmm") -> janv | J51: =WEEKNUM(ventes[[#This Row],[DATES]]) -> 4
A52: 2021-01-21 | B52: client38 | C52: Produit42 | D52: 162 | E52: 6 | F52: =ventes[[#This Row],[PRIX UNITAIRE (FCFA)]]*ventes[[#This Row],[QUANTITE]] -> 972 | G52: =VLOOKUP(ventes[[#This Row],[CLIENTS]],localisations[],2,0) -> Pakistan | H52: =VLOOKUP(ventes[[#This Row],[CLIENTS]],localisations[],3,0) -> Asie | I52: =TEXT(ventes[[#This Row],[DATES]],"mmm") -> janv | J52: =WEEKNUM(ventes[[#This Row],[DATES]]) -> 4
A53: 2021-01-21 | B53: client29 | C53: Produit03 | D53: 80.94 | E53: 9 | F53: =ventes[[#This Row],[PRIX UNITAIRE (FCFA)]]*ventes[[#This Row],[QUANTITE]] -> 728.46 | G53: =VLOOKUP(ventes[[#This Row],[CLIENTS]],localisations[],2,0) -> Chili | H53: =VLOOKUP(ventes[[#This Row],[CLIENTS]],localisations[],3,0) -> Amérique | I53: =TEXT(ventes[[#This Row],[DATES]],"mmm") -> janv | J53: =WEEKNUM(ventes[[#This Row],[DATES]]) -> 4
A54: 2021-01-22 | B54: client27 | C54: Produit01 | D54: 103.88 | E54: 6 | F54: =ventes[[#This Row],[PRIX UNITAIRE (FCFA)]]*ventes[[#This Row],[QUANTITE]] -> 623.28 | G54: =VLOOKUP(ventes[[#This Row],[CLIENTS]],localisations[],2,0) -> Mexique | H54: =VLOOKUP(ventes[[#This Row],[CLIENTS]],localisations[],3,0) -> Amérique | I54: =TEXT(ventes[[#This Row],[DATES]],"mmm") -> janv | J54: =WEEKNUM(ventes[[#This Row],[DATES]]) -> 4
A55: 2021-01-23 | B55: client11 | C55: Produit02 | D55: 142.8 | E55: 5 | F55: =ventes[[#This Row],[PRIX UNITAIRE (FCFA)]]*ventes[[#This Row],[QUANTITE]] -> 714 | G55: =VLOOKUP(ventes[[#This Row],[CLIENTS]],localisations[],2,0) -> Espagne | H55: =VLOOKUP(ventes[[#This Row],[CLIENTS]],localisations[],3,0) -> Europe | I55: =TEXT(ventes[[#This Row],[DATES]],"mmm") -> janv | J55: =WEEKNUM(ventes[[#This Row],[DATES]]) -> 4
A56: 2021-01-23 | B56: client18 | C56: Produit08 | D56: 94.62 | E56: 17 | F56: =ventes[[#This Row],[PRIX UNITAIRE (FCFA)]]*ventes[[#This Row],[QUANTITE]] -> 1608.54 | G56: =VLOOKUP(ventes[[#This Row],[CLIENTS]],localisations[],2,0) -> Belgique | H56: =VLOOKUP(ventes[[#This Row],[CLIENTS]],localisations[],3,0) -> Europe | I56: =TEXT(ventes[[#This Row],[DATES]],"mmm") -> janv | J56: =WEEKNUM(ventes[[#This Row],[DATES]]) -> 4
A57: 2021-01-23 | B57: client19 | C57: Produit42 | D57: 162 | E57: 8 | F57: =ventes[[#This Row],[PRIX UNITAIRE (FCFA)]]*ventes[[#This Row],[QUANTITE]] -> 1296 | G57: =VLOOKUP(ventes[[#This Row],[CLIENTS]],localisations[],2,0) -> Suisse | H57: =VLOOKUP(ventes[[#This Row],[CLIENTS]],localisations[],3,0) -> Europe | I57: =TEXT(ventes[[#This Row],[DATES]],"mmm") -> janv | J57: =WEEKNUM(ventes[[#This Row],[DATES]]) -> 4
A58: 2021-01-24 | B58: client26 | C58: Produit30 | D58: 201.28 | E58: 15 | F58: =ventes[[#This Row],[PRIX UNITAIRE (FCFA)]]*ventes[[#This Row],[QUANTITE]] -> 3019.2 | G58: =VLOOKUP(ventes[[#This Row],[CLIENTS]],localisations[],2,0) -> Pérou | H58: =VLOOKUP(ventes[[#This Row],[CLIENTS]],localisations[],3,0) -> Amérique | I58: =TEXT(ventes[[#This Row],[DATES]],"mmm") -> janv | J58: =WEEKNUM(ventes[[#This Row],[DATES]]) -> 5
A59: 2021-01-25 | B59: client01 | C59: Produit31 | D59: 104.16 | E59: 14 | F59: =ventes[[#This Row],[PRIX UNITAIRE (FCFA)]]*ventes[[#This Row],[QUANTITE]] -> 1458.24 | G59: =VLOOKUP(ventes[[#This Row],[CLIENTS]],localisations[],2,0) -> Tunisie | H59: =VLOOKUP(ventes[[#This Row],[CLIENTS]],localisations[],3,0) -> Afrique | I59: =TEXT(ventes[[#This Row],[DATES]],"mmm") -> janv | J59: =WEEKNUM(ventes[[#This Row],[DATES]]) -> 5
A60: 2021-01-25 | B60: client31 | C60: Produit35 | D60: 6.7 | E60: 7 | F60: =ventes[[#This Row],[PRIX UNITAIRE (FCFA)]]*ventes[[#This Row],[QUANTITE]] -> 46.9 | G60: =VLOOKUP(ventes[[#This Row],[CLIENTS]],localisations[],2,0) -> Corée du Sud | H60: =VLOOKUP(ventes[[#This Row],[CLIENTS]],localisations[],3,0) -> Asie | I60: =TEXT(ventes[[#This Row],[DATES]],"mmm") -> janv | J60: =WEEKNUM(ventes[[#This Row],[DATES]]) -> 5
A61: 2021-01-25 | B61: client08 | C61: Produit34 | D61: 58.3 | E61: 6 | F61: =ventes[[#This Row],[PRIX UNITAIRE (FCFA)]]*ventes[[#This Row],[QUANTITE]] -> 349.8 | G61: =VLOOKUP(ventes[[#This Row],[CLIENTS]],localisations[],2,0) -> Maroc | H61: =VLOOKUP(ventes[[#This Row],[CLIENTS]],localisations[],3,0) -> Afrique | I61: =TEXT(ventes[[#This Row],[DATES]],"mmm") -> janv | J61: =WEEKNUM(ventes[[#This Row],[DATES]]) -> 5
A62: 2021-01-25 | B62: client21 | C62: Produit17 | D62: 156.78 | E62: 14 | F62: =ventes[[#This Row],[PRIX UNITAIRE (FCFA)]]*ventes[[#This Row],[QUANTITE]] -> 2194.92 | G62: =VLOOKUP(ventes[[#This Row],[CLIENTS]],localisations[],2,0) -> Venezuela | H62: =VLOOKUP(ventes[[#This Row],[CLIENTS]],localisations[],3,0) -> Amérique | I62: =TEXT(ventes[[#This Row],[DATES]],"mmm") -> janv | J62: =WEEKNUM(ventes[[#This Row],[DATES]]) -> 5
A63: 2021-01-26 | B63: client31 | C63: Produit24 | D63: 156.96 | E63: 29 | F63: =ventes[[#This Row],[PRIX UNITAIRE (FCFA)]]*ventes[[#This Row],[QUANTITE]] -> 4551.84 | G63: =VLOOKUP(ventes[[#This Row],[CLIENTS]],localisations[],2,0) -> Corée du Sud | H63: =VLOOKUP(ventes[[#This Row],[CLIENTS]],localisations[],3,0) -> Asie | I63: =TEXT(ventes[[#This Row],[DATES]],"mmm") -> janv | J63: =WEEKNUM(ventes[[#This Row],[DATES]]) -> 5
A64: 2021-01-26 | B64: client06 | C64: Produit44 | D64: 82.08 | E64: 9 | F64: =ventes[[#This Row],[PRIX UNITAIRE (FCFA)]]*ventes[[#This Row],[QUANTITE]] -> 738.72 | G64: =VLOOKUP(ventes[[#This Row],[CLIENTS]],localisations[],2,0) -> Afrique du Sud | H64: =VLOOKUP(ventes[[#This Row],[CLIENTS]],localisations[],3,0) -> Afrique | I64: =TEXT(ventes[[#This Row],[DATES]],"mmm") -> janv | J64: =WEEKNUM(ventes[[#This Row],[DATES]]) -> 5
A65: 2021-01-26 | B65: client34 | C65: Produit01 | D65: 103.88 | E65: 7 | F65: =ventes[[#This Row],[PRIX UNITAIRE (FCFA)]]*ventes[[#This Row],[QUANTITE]] -> 727.16 | G65: =VLOOKUP(ventes[[#This Row],[CLIENTS]],localisations[],2,0) -> Japon | H65: =VLOOKUP(ventes[[#This Row],[CLIENTS]],localisations[],3,0) -> Asie | I65: =TEXT(ventes[[#This Row],[DATES]],"mmm") -> janv | J65: =WEEKNUM(ventes[[#This Row],[DATES]]) -> 5
A66: 2021-01-26 | B66: client17 | C66: Produit06 | D66: 85.5 | E66: 7 | F66: =ventes[[#This Row],[PRIX UNITAIRE (FCFA)]]*ventes[[#This Row],[QUANTITE]] -> 598.5 | G66: =VLOOKUP(ventes[[#This Row],[CLIENTS]],localisations[],2,0) -> Suède | H66: =VLOOKUP(ventes[[#This Row],[CLIENTS]],localisations[],3,0) -> Europe | I66: =TEXT(ventes[[#This Row],[DATES]],"mmm") -> janv | J66: =WEEKNUM(ventes[[#This Row],[DATES]]) -> 5
A67: 2021-01-26 | B67: client18 | C67: Produit10 | D67: 164.28 | E67: 1 | F67: =ventes[[#This Row],[PRIX UNITAIRE (FCFA)]]*ventes[[#This Row],[QUANTITE]] -> 164.28 | G67: =VLOOKUP(ventes[[#This Row],[CLIENTS]],localisations[],2,0) -> Belgique | H67: =VLOOKUP(ventes[[#This Row],[CLIENTS]],localisations[],3,0) -> Europe | I67: =TEXT(ventes[[#This Row],[DATES]],"mmm") -> janv | J67: =WEEKNUM(ventes[[#This Row],[DATES]]) -> 5
A68: 2021-01-27 | B68: client08 | C68: Produit32 | D68: 117.48 | E68: 3 | F68: =ventes[[#This Row],[PRIX UNITAIRE (FCFA)]]*ventes[[#This Row],[QUANTITE]] -> 352.44 | G68: =VLOOKUP(ventes[[#This Row],[CLIENTS]],localisations[],2,0) -> Maroc | H68: =VLOOKUP(ventes[[#This Row],[CLIENTS]],localisations[],3,0) -> Afrique | I68: =TEXT(ventes[[#This Row],[DATES]],"mmm") -> janv | J68: =WEEKNUM(ventes[[#This Row],[DATES]]) -> 5
A69: 2021-01-27 | B69: client15 | C69: Produit40 | D69: 115.2 | E69: 7 | F69: =ventes[[#This Row],[PRIX UNITAIRE (FCFA)]]*ventes[[#This Row],[QUANTITE]] -> 806.4 | G69: =VLOOKUP(ventes[[#This Row],[CLIENTS]],localisations[],2,0) -> Allemagne | H69: =VLOOKUP(ventes[[#This Row],[CLIENTS]],localisations[],3,0) -> Europe | I69: =TEXT(ventes[[#This Row],[DATES]],"mmm") -> janv | J69: =WEEKNUM(ventes[[#This Row],[DATES]]) -> 5
A70: 2021-01-27 | B70: client16 | C70: Produit05 | D70: 155.61 | E70: 37 | F70: =ventes[[#This Row],[PRIX UNITAIRE (FCFA)]]*ventes[[#This Row],[QUANTITE]] -> 5757.57 | G70: =VLOOKUP(ventes[[#This Row],[CLIENTS]],localisations[],2,0) -> Royaume-Uni | H70: =VLOOKUP(ventes[[#This Row],[CLIENTS]],localisations[],3,0) -> Europe | I70: =TEXT(ventes[[#This Row],[DATES]],"mmm") -> janv | J70: =WEEKNUM(ventes[[#This Row],[DATES]]) -> 5
A71: 2021-01-27 | B71: client25 | C71: Produit19 | D71: 210 | E71: 21 | F71: =ventes[[#This Row],[PRIX UNITAIRE (FCFA)]]*ventes[[#This Row],[QUANTITE]] -> 4410 | G71: =VLOOKUP(ventes[[#This Row],[CLIENTS]],localisations[],2,0) -> Brésil | H71: =VLOOKUP(ventes[[#This Row],[CLIENTS]],localisations[],3,0) -> Amérique | I71: =TEXT(ventes[[#This Row],[DATES]],"mmm") -> janv | J71: =WEEKNUM(ventes[[#This Row],[DATES]]) -> 5
A72: 2021-01-28 | B72: client31 | C72: Produit16 | D72: 16.64 | E72: 11 | F72: =ventes[[#This Row],[PRIX UNITAIRE (FCFA)]]*ventes[[#This Row],[QUANTITE]] -> 183.04 | G72: =VLOOKUP(ventes[[#This Row],[CLIENTS]],localisations[],2,0) -> Corée du Sud | H72: =VLOOKUP(ventes[[#This Row],[CLIENTS]],localisations[],3,0) -> Asie | I72: =TEXT(ventes[[#This Row],[DATES]],"mmm") -> janv | J72: =WEEKNUM(ventes[[#This Row],[DATES]]) -> 5
A73: 2021-01-28 | B73: client03 | C73: Produit29 | D73: 53.11 | E73: 2 | F73: =ventes[[#This Row],[PRIX UNITAIRE (FCFA)]]*ventes[[#This Row],[QUANTITE]] -> 106.22 | G73: =VLOOKUP(ventes[[#This Row],[CLIENTS]],localisations[],2,0) -> Côte d'Ivoire | H73: =VLOOKUP(ventes[[#This Row],[CLIENTS]],localisations[],3,0) -> Afrique | I73: =TEXT(ventes[[#This Row],[DATES]],"mmm") -> janv | J73: =WEEKNUM(ventes[[#This Row],[DATES]]) -> 5
A74: 2021-01-28 | B74: client39 | C74: Produit04 | D74: 48.84 | E74: 10 | F74: =ventes[[#This Row],[PRIX UNITAIRE (FCFA)]]*ventes[[#This Row],[QUANTITE]] -> 488.4 | G74: =VLOOKUP(ventes[[#This Row],[CLIENTS]],localisations[],2,0) -> Pakistan | H74: =VLOOKUP(ventes[[#This Row],[CLIENTS]],localisations[],3,0) -> Asie | I74: =TEXT(ventes[[#This Row],[DATES]],"mmm") -> janv | J74: =WEEKNUM(ventes[[#This Row],[DATES]]) -> 5
A75: 2021-01-29 | B75: client33 | C75: Produit04 | D75: 48.84 | E75: 10 | F75: =ventes[[#This Row],[PRIX UNITAIRE (FCFA)]]*ventes[[#This Row],[QUANTITE]] -> 488.4 | G75: =VLOOKUP(ventes[[#This Row],[CLIENTS]],localisations[],2,0) -> Philippines | H75: =VLOOKUP(ventes[[#This Row],[CLIENTS]],localisations[],3,0) -> Asie | I75: =TEXT(ventes[[#This Row],[DATES]],"mmm") -> janv | J75: =WEEKNUM(ventes[[#This Row],[DATES]]) -> 5
A76: 2021-01-29 | B76: client19 | C76: Produit24 | D76: 156.96 | E76: 25 | F76: =ventes[[#This Row],[PRIX UNITAIRE (FCFA)]]*ventes[[#This Row],[QUANTITE]] -> 3924 | G76: =VLOOKUP(ventes[[#This Row],[CLIENTS]],localisations[],2,0) -> Suisse | H76: =VLOOKUP(ventes[[#This Row],[CLIENTS]],localisations[],3,0) -> Europe | I76: =TEXT(ventes[[#This Row],[DATES]],"mmm") -> janv | J76: =WEEKNUM(ventes[[#This Row],[DATES]]) -> 5
A77: 2021-01-29 | B77: client36 | C77: Produit14 | D77: 146.72 | E77: 21 | F77: =ventes[[#This Row],[PRIX UNITAIRE (FCFA)]]*ventes[[#This Row],[QUANTITE]] -> 3081.12 | G77: =VLOOKUP(ventes[[#This Row],[CLIENTS]],localisations[],2,0) -> Vietnam | H77: =VLOOKUP(ventes[[#This Row],[CLIENTS]],localisations[],3,0) -> Asie | I77: =TEXT(ventes[[#This Row],[DATES]],"mmm") -> janv | J77: =WEEKNUM(ventes[[#This Row],[DATES]]) -> 5
A78: 2021-01-30 | B78: client35 | C78: Produit43 | D78: 83.08 | E78: 2 | F78: =ventes[[#This Row],[PRIX UNITAIRE (FCFA)]]*ventes[[#This Row],[QUANTITE]] -> 166.16 | G78: =VLOOKUP(ventes[[#This Row],[CLIENTS]],localisations[],2,0) -> Malaisie | H78: =VLOOKUP(ventes[[#This Row],[CLIENTS]],localisations[],3,0) -> Asie | I78: =TEXT(ventes[[#This Row],[DATES]],"mmm") -> janv | J78: =WEEKNUM(ventes[[#This Row],[DATES]]) -> 5
A79: 2021-01-30 | B79: client21 | C79: Produit27 | D79: 57.12 | E79: 2 | F79: =ventes[[#This Row],[PRIX UNITAIRE (FCFA)]]*ventes[[#This Row],[QUANTITE]] -> 114.24 | G79: =VLOOKUP(ventes[[#This Row],[CLIENTS]],localisations[],2,0) -> Venezuela | H79: =VLOOKUP(ventes[[#This Row],[CLIENTS]],localisations[],3,0) -> Amérique | I79: =TEXT(ventes[[#This Row],[DATES]],"mmm") -> janv | J79: =WEEKNUM(ventes[[#This Row],[DATES]]) -> 5
A80: 2021-01-31 | B80: client33 | C80: Produit27 | D80: 57.12 | E80: 20 | F80: =ventes[[#This Row],[PRIX UNITAIRE (FCFA)]]*ventes[[#This Row],[QUANTITE]] -> 1142.4 | G80: =VLOOKUP(ventes[[#This Row],[CLIENTS]],localisations[],2,0) -> Philippines | H80: =VLOOKUP(ventes[[#This Row],[CLIENTS]],localisations[],3,0) -> Asie | I80: =TEXT(ventes[[#This Row],[DATES]],"mmm") -> janv | J80: =WEEKNUM(ventes[[#This Row],[DATES]]) -> 6
A81: 2021-01-31 | B81: client33 | C81: Produit28 | D81: 41.81 | E81: 3 | F81: =ventes[[#This Row],[PRIX UNITAIRE (FCFA)]]*ventes[[#This Row],[QUANTITE]] -> 125.43 | G81: =VLOOKUP(ventes[[#This Row],[CLIENTS]],localisations[],2,0) -> Philippines | H81: =VLOOKUP(ventes[[#This Row],[CLIENTS]],localisations[],3,0) -> Asie | I81: =TEXT(ventes[[#This Row],[DATES]],"mmm") -> janv | J81: =WEEKNUM(ventes[[#This Row],[DATES]]) -> 6
A82: 2021-01-31 | B82: client22 | C82: Produit41 | D82: 173.88 | E82: 9 | F82: =ventes[[#This Row],[PRIX UNITAIRE (FCFA)]]*ventes[[#This Row],[QUANTITE]] -> 1564.92 | G82: =VLOOKUP(ventes[[#This Row],[CLIENTS]],localisations[],2,0) -> Canada | H82: =VLOOKUP(ventes[[#This Row],[CLIENTS]],localisations[],3,0) -> Amérique | I82: =TEXT(ventes[[#This Row],[DATES]],"mmm") -> janv | J82: =WEEKNUM(ventes[[#This Row],[DATES]]) -> 6
A83: 2021-01-31 | B83: client39 | C83: Produit03 | D83: 80.94 | E83: 33 | F83: =ventes[[#This Row],[PRIX UNITAIRE (FCFA)]]*ventes[[#This Row],[QUANTITE]] -> 2671.02 | G83: =VLOOKUP(ventes[[#This Row],[CLIENTS]],localisations[],2,0) -> Pakistan | H83: =VLOOKUP(ventes[[#This Row],[CLIENTS]],localisations[],3,0) -> Asie | I83: =TEXT(ventes[[#This Row],[DATES]],"mmm") -> janv | J83: =WEEKNUM(ventes[[#This Row],[DATES]]) -> 6
A84: 2021-01-31 | B84: client30 | C84: Produit23 | D84: 149.46 | E84: 6 | F84: =ventes[[#This Row],[PRIX UNITAIRE (FCFA)]]*ventes[[#This Row],[QUANTITE]] -> 896.76 | G84: =VLOOKUP(ventes[[#This Row],[CLIENTS]],localisations[],2,0) -> Colombie | H84: =VLOOKUP(ventes[[#This Row],[CLIENTS]],localisations[],3,0) -> Amérique | I84: =TEXT(ventes[[#This Row],[DATES]],"mmm") -> janv | J84: =WEEKNUM(ventes[[#This Row],[DATES]]) -> 6
A85: 2021-02-01 | B85: client01 | C85: Produit05 | D85: 155.61 | E85: 9 | F85: =ventes[[#This Row],[PRIX UNITAIRE (FCFA)]]*ventes[[#This Row],[QUANTITE]] -> 1400.49 | G85: =VLOOKUP(ventes[[#This Row],[CLIENTS]],localisations[],2,0) -> Tunisie | H85: =VLOOKUP(ventes[[#This Row],[CLIENTS]],localisations[],3,0) -> Afrique | I85: =TEXT(ventes[[#This Row],[DATES]],"mmm") -> févr | J85: =WEEKNUM(ventes[[#This Row],[DATES]]) -> 6
A86: 2021-02-02 | B86: client35 | C86: Produit10 | D86: 164.28 | E86: 7 | F86: =ventes[[#This Row],[PRIX UNITAIRE (FCFA)]]*ventes[[#This Row],[QUANTITE]] -> 1149.96 | G86: =VLOOKUP(ventes[[#This Row],[CLIENTS]],localisations[],2,0) -> Malaisie | H86: =VLOOKUP(ventes[[#This Row],[CLIENTS]],localisations[],3,0) -> Asie | I86: =TEXT(ventes[[#This Row],[DATES]],"mmm") -> févr | J86: =WEEKNUM(ventes[[#This Row],[DATES]]) -> 6
A87: 2021-02-03 | B87: client31 | C87: Produit22 | D87: 141.57 | E87: 2 | F87: =ventes[[#This Row],[PRIX UNITAIRE (FCFA)]]*ventes[[#This Row],[QUANTITE]] -> 283.14 | G87: =VLOOKUP(ventes[[#This Row],[CLIENTS]],localisations[],2,0) -> Corée du Sud | H87: =VLOOKUP(ventes[[#This Row],[CLIENTS]],localisations[],3,0) -> Asie | I87: =TEXT(ventes[[#This Row],[DATES]],"mmm") -> févr | J87: =WEEKNUM(ventes[[#This Row],[DATES]]) -> 6
A88: 2021-02-03 | B88: client33 | C88: Produit19 | D88: 210 | E88: 39 | F88: =ventes[[#This Row],[PRIX UNITAIRE (FCFA)]]*ventes[[#This Row],[QUANTITE]] -> 8190 | G88: =VLOOKUP(ventes[[#This Row],[CLIENTS]],localisations[],2,0) -> Philippines | H88: =VLOOKUP(ventes[[#This Row],[CLIENTS]],localisations[],3,0) -> Asie | I88: =TEXT(ventes[[#This Row],[DATES]],"mmm") -> févr | J88: =WEEKNUM(ventes[[#This Row],[DATES]]) -> 6
A89: 2021-02-03 | B89: client25 | C89: Produit38 | D89: 79.92 | E89: 27 | F89: =ventes[[#This Row],[PRIX UNITAIRE (FCFA)]]*ventes[[#This Row],[QUANTITE]] -> 2157.84 | G89: =VLOOKUP(ventes[[#This Row],[CLIENTS]],localisations[],2,0) -> Brésil | H89: =VLOOKUP(ventes[[#This Row],[CLIENTS]],localisations[],3,0) -> Amérique | I89: =TEXT(ventes[[#This Row],[DATES]],"mmm") -> févr | J89: =WEEKNUM(ventes[[#This Row],[DATES]]) -> 6
A90: 2021-02-03 | B90: client27 | C90: Produit14 | D90: 146.72 | E90: 8 | F90: =ventes[[#This Row],[PRIX UNITAIRE (FCFA)]]*ventes[[#This Row],[QUANTITE]] -> 1173.76 | G90: =VLOOKUP(ventes[[#This Row],[CLIENTS]],localisations[],2,0) -> Mexique | H90: =VLOOKUP(ventes[[#This Row],[CLIENTS]],localisations[],3,0) -> Amérique | I90: =TEXT(ventes[[#This Row],[DATES]],"mmm") -> févr | J90: =WEEKNUM(ventes[[#This Row],[DATES]]) -> 6
A91: 2021-02-03 | B91: client29 | C91: Produit16 | D91: 16.64 | E91: 13 | F91: =ventes[[#This Row],[PRIX UNITAIRE (FCFA)]]*ventes[[#This Row],[QUANTITE]] -> 216.32 | G91: =VLOOKUP(ventes[[#This Row],[CLIENTS]],localisations[],2,0) -> Chili | H91: =VLOOKUP(ventes[[#This Row],[CLIENTS]],localisations[],3,0) -> Amérique | I91: =TEXT(ventes[[#This Row],[DATES]],"mmm") -> févr | J91: =WEEKNUM(ventes[[#This Row],[DATES]]) -> 6
A92: 2021-02-04 | B92: client36 | C92: Produit44 | D92: 82.08 | E92: 39 | F92: =ventes[[#This Row],[PRIX UNITAIRE (FCFA)]]*ventes[[#This Row],[QUANTITE]] -> 3201.12 | G92: =VLOOKUP(ventes[[#This Row],[CLIENTS]],localisations[],2,0) -> Vietnam | H92: =VLOOKUP(ventes[[#This Row],[CLIENTS]],localisations[],3,0) -> Asie | I92: =TEXT(ventes[[#This Row],[DATES]],"mmm") -> févr | J92: =WEEKNUM(ventes[[#This Row],[DATES]]) -> 6
A93: 2021-02-04 | B93: client25 | C93: Produit37 | D93: 85.76 | E93: 4 | F93: =ventes[[#This Row],[PRIX UNITAIRE (FCFA)]]*ventes[[#This Row],[QUANTITE]] -> 343.04 | G93: =VLOOKUP(ventes[[#This Row],[CLIENTS]],localisations[],2,0) -> Brésil | H93: =VLOOKUP(ventes[[#This Row],[CLIENTS]],localisations[],3,0) -> Amérique | I93: =TEXT(ventes[[#This Row],[DATES]],"mmm") -> févr | J93: =WEEKNUM(ventes[[#This Row],[DATES]]) -> 6
A94: 2021-02-04 | B94: client26 | C94: Produit14 | D94: 146.72 | E94: 26 | F94: =ventes[[#This Row],[PRIX UNITAIRE (FCFA)]]*ventes[[#This Row],[QUANTITE]] -> 3814.72 | G94: =VLOOKUP(ventes[[#This Row],[CLIENTS]],localisations[],2,0) -> Pérou | H94: =VLOOKUP(ventes[[#This Row],[CLIENTS]],localisations[],3,0) -> Amérique | I94: =TEXT(ventes[[#This Row],[DATES]],"mmm") -> févr | J94: =WEEKNUM(ventes[[#This Row],[DATES]]) -> 6
A95: 2021-02-04 | B95: client27 | C95: Produit25 | D95: 8.33 | E95: 3 | F95: =ventes[[#This Row],[PRIX UNITAIRE (FCFA)]]*ventes[[#This Row],[QUANTITE]] -> 24.99 | G95: =VLOOKUP(ventes[[#This Row],[CLIENTS]],localisations[],2,0) -> Mexique | H95: =VLOOKUP(ventes[[#This Row],[CLIENTS]],localisations[],3,0) -> Amérique | I95: =TEXT(ventes[[#This Row],[DATES]],"mmm") -> févr | J95: =WEEKNUM(ventes[[#This Row],[DATES]]) -> 6
A96: 2021-02-05 | B96: client01 | C96: Produit03 | D96: 80.94 | E96: 24 | F96: =ventes[[#This Row],[PRIX UNITAIRE (FCFA)]]*ventes[[#This Row],[QUANTITE]] -> 1942.56 | G96: =VLOOKUP(ventes[[#This Row],[CLIENTS]],localisations[],2,0) -> Tunisie | H96: =VLOOKUP(ventes[[#This Row],[CLIENTS]],localisations[],3,0) -> Afrique | I96: =TEXT(ventes[[#This Row],[DATES]],"mmm") -> févr | J96: =WEEKNUM(ventes[[#This Row],[DATES]]) -> 6
A97: 2021-02-05 | B97: client32 | C97: Produit39 | D97: 42.55 | E97: 38 | F97: =ventes[[#This Row],[PRIX UNITAIRE (FCFA)]]*ventes[[#This Row],[QUANTITE]] -> 1616.9 | G97: =VLOOKUP(ventes[[#This Row],[CLIENTS]],localisations[],2,0) -> Indonésie | H97: =VLOOKUP(ventes[[#This Row],[CLIENTS]],localisations[],3,0) -> Asie | I97: =TEXT(ventes[[#This Row],[DATES]],"mmm") -> févr | J97: =WEEKNUM(ventes[[#This Row],[DATES]]) -> 6
A98: 2021-02-05 | B98: client11 | C98: Produit05 | D98: 155.61 | E98: 1 | F98: =ventes[[#This Row],[PRIX UNITAIRE (FCFA)]]*ventes[[#This Row],[QUANTITE]] -> 155.61 | G98: =VLOOKUP(ventes[[#This Row],[CLIENTS]],localisations[],2,0) -> Espagne | H98: =VLOOKUP(ventes[[#This Row],[CLIENTS]],localisations[],3,0) -> Europe | I98: =TEXT(ventes[[#This Row],[DATES]],"mmm") -> févr | J98: =WEEKNUM(ventes[[#This Row],[DATES]]) -> 6
A99: 2021-02-05 | B99: client16 | C99: Produit43 | D99: 83.08 | E99: 7 | F99: =ventes[[#This Row],[PRIX UNITAIRE (FCFA)]]*ventes[[#This Row],[QUANTITE]] -> 581.56 | G99: =VLOOKUP(ventes[[#This Row],[CLIENTS]],localisations[],2,0) -> Royaume-Uni | H99: =VLOOKUP(ventes[[#This Row],[CLIENTS]],localisations[],3,0) -> Europe | I99: =TEXT(ventes[[#This Row],[DATES]],"mmm") -> févr | J99: =WEEKNUM(ventes[[#This Row],[DATES]]) -> 6
A100: 2021-02-05 | B100: client20 | C100: Produit43 | D100: 83.08 | E100: 9 | F100: =ventes[[#This Row],[PRIX UNITAIRE (FCFA)]]*ventes[[#This Row],[QUANTITE]] -> 747.72 | G100: =VLOOKUP(ventes[[#This Row],[CLIENTS]],localisations[],2,0) -> France | H100: =VLOOKUP(ventes[[#This Row],[CLIENTS]],localisations[],3,0) -> Europe | I100: =TEXT(ventes[[#This Row],[DATES]],"mmm") -> févr | J100: =WEEKNUM(ventes[[#This Row],[DATES]]) -> 6
A101: 2021-02-05 | B101: client30 | C101: Produit18 | D101: 49.21 | E101: 6 | F101: =ventes[[#This Row],[PRIX UNITAIRE (FCFA)]]*ventes[[#This Row],[QUANTITE]] -> 295.26 | G101: =VLOOKUP(ventes[[#This Row],[CLIENTS]],localisations[],2,0) -> Colombie | H101: =VLOOKUP(ventes[[#This Row],[CLIENTS]],localisations[],3,0) -> Amérique | I101: =TEXT(ventes[[#This Row],[DATES]],"mmm") -> févr | J101: =WEEKNUM(ventes[[#This Row],[DATES]]) -> 6
A102: 2021-02-06 | B102: client31 | C102: Produit09 | D102: 7.86 | E102: 30 | F102: =ventes[[#This Row],[PRIX UNITAIRE (FCFA)]]*ventes[[#This Row],[QUANTITE]] -> 235.8 | G102: =VLOOKUP(ventes[[#This Row],[CLIENTS]],localisations[],2,0) -> Corée du Sud | H102: =VLOOKUP(ventes[[#This Row],[CLIENTS]],localisations[],3,0) -> Asie | I102: =TEXT(ventes[[#This Row],[DATES]],"mmm") -> févr | J102: =WEEKNUM(ventes[[#This Row],[DATES]]) -> 6
A103: 2021-02-06 | B103: client22 | C103: Produit02 | D103: 142.8 | E103: 6 | F103: =ventes[[#This Row],[PRIX UNITAIRE (FCFA)]]*ventes[[#This Row],[QUANTITE]] -> 856.8 | G103: =VLOOKUP(ventes[[#This Row],[CLIENTS]],localisations[],2,0) -> Canada | H103: =VLOOKUP(ventes[[#This Row],[CLIENTS]],localisations[],3,0) -> Amérique | I103: =TEXT(ventes[[#This Row],[DATES]],"mmm") -> févr | J103: =WEEKNUM(ventes[[#This Row],[DATES]]) -> 6
A104: 2021-02-06 | B104: client29 | C104: Produit35 | D104: 6.7 | E104: 1 | F104: =ventes[[#This Row],[PRIX UNITAIRE (FCFA)]]*ventes[[#This Row],[QUANTITE]] -> 6.7 | G104: =VLOOKUP(ventes[[#This Row],[CLIENTS]],localisations[],2,0) -> Chili | H104: =VLOOKUP(ventes[[#This Row],[CLIENTS]],localisations[],3,0) -> Amérique | I104: =TEXT(ventes[[#This Row],[DATES]],"mmm") -> févr | J104: =WEEKNUM(ventes[[#This Row],[DATES]]) -> 6
A105: 2021-02-07 | B105: client08 | C105: Produit35 | D105: 6.7 | E105: 29 | F105: =ventes[[#This Row],[PRIX UNITAIRE (FCFA)]]*ventes[[#This Row],[QUANTITE]] -> 194.3 | G105: =VLOOKUP(ventes[[#This Row],[CLIENTS]],localisations[],2,0) -> Maroc | H105: =VLOOKUP(ventes[[#This Row],[CLIENTS]],localisations[],3,0) -> Afrique | I105: =TEXT(ventes[[#This Row],[DATES]],"mmm") -> févr | J105: =WEEKNUM(ventes[[#This Row],[DATES]]) -> 7
A106: 2021-02-07 | B106: client25 | C106: Produit16 | D106: 16.64 | E106: 5 | F106: =ventes[[#This Row],[PRIX UNITAIRE (FCFA)]]*ventes[[#This Row],[QUANTITE]] -> 83.2 | G106: =VLOOKUP(ventes[[#This Row],[CLIENTS]],localisations[],2,0) -> Brésil | H106: =VLOOKUP(ventes[[#This Row],[CLIENTS]],localisations[],3,0) -> Amérique | I106: =TEXT(ventes[[#This Row],[DATES]],"mmm") -> févr | J106: =WEEKNUM(ventes[[#This Row],[DATES]]) -> 7
A107: 2021-02-08 | B107: client03 | C107: Produit04 | D107: 48.84 | E107: 3 | F107: =ventes[[#This Row],[PRIX UNITAIRE (FCFA)]]*ventes[[#This Row],[QUANTITE]] -> 146.52 | G107: =VLOOKUP(ventes[[#This Row],[CLIENTS]],localisations[],2,0) -> Côte d'Ivoire | H107: =VLOOKUP(ventes[[#This Row],[CLIENTS]],localisations[],3,0) -> Afrique | I107: =TEXT(ventes[[#This Row],[DATES]],"mmm") -> févr | J107: =WEEKNUM(ventes[[#This Row],[DATES]]) -> 7
A108: 2021-02-08 | B108: client32 | C108: Produit05 | D108: 155.61 | E108: 11 | F108: =ventes[[#This Row],[PRIX UNITAIRE (FCFA)]]*ventes[[#This Row],[QUANTITE]] -> 1711.71 | G108: =VLOOKUP(ventes[[#This Row],[CLIENTS]],localisations[],2,0) -> Indonésie | H108: =VLOOKUP(ventes[[#This Row],[CLIENTS]],localisations[],3,0) -> Asie | I108: =TEXT(ventes[[#This Row],[DATES]],"mmm") -> févr | J108: =WEEKNUM(ventes[[#This Row],[DATES]]) -> 7
A109: 2021-02-08 | B109: client06 | C109: Produit40 | D109: 115.2 | E109: 39 | F109: =ventes[[#This Row],[PRIX UNITAIRE (FCFA)]]*ventes[[#This Row],[QUANTITE]] -> 4492.8 | G109: =VLOOKUP(ventes[[#This Row],[CLIENTS]],localisations[],2,0) -> Afrique du Sud | H109: =VLOOKUP(ventes[[#This Row],[CLIENTS]],localisations[],3,0) -> Afrique | I109: =TEXT(ventes[[#This Row],[DATES]],"mmm") -> févr | J109: =WEEKNUM(ventes[[#This Row],[DATES]]) -> 7
A110: 2021-02-08 | B110: client06 | C110: Produit30 | D110: 201.28 | E110: 12 | F110: =ventes[[#This Row],[PRIX UNITAIRE (FCFA)]]*ventes[[#This Row],[QUANTITE]] -> 2415.36 | G110: =VLOOKUP(ventes[[#This Row],[CLIENTS]],localisations[],2,0) -> Afrique du Sud | H110: =VLOOKUP(ventes[[#This Row],[CLIENTS]],localisations[],3,0) -> Afrique | I110: =TEXT(ventes[[#This Row],[DATES]],"mmm") -> févr | J110: =WEEKNUM(ventes[[#This Row],[DATES]]) -> 7
A111: 2021-02-09 | B111: client16 | C111: Produit34 | D111: 58.3 | E111: 14 | F111: =ventes[[#This Row],[PRIX UNITAIRE (FCFA)]]*ventes[[#This Row],[QUANTITE]] -> 816.2 | G111: =VLOOKUP(ventes[[#This Row],[CLIENTS]],localisations[],2,0) -> Royaume-Uni | H111: =VLOOKUP(ventes[[#This Row],[CLIENTS]],localisations[],3,0) -> Europe | I111: =TEXT(ventes[[#This Row],[DATES]],"mmm") -> févr | J111: =WEEKNUM(ventes[[#This Row],[DATES]]) -> 7
A112: 2021-02-09 | B112: client16 | C112: Produit21 | D112: 162.54 | E112: 32 | F112: =ventes[[#This Row],[PRIX UNITAIRE (FCFA)]]*ventes[[#This Row],[QUANTITE]] -> 5201.28 | G112: =VLOOKUP(ventes[[#This Row],[CLIENTS]],localisations[],2,0) -> Royaume-Uni | H112: =VLOOKUP(ventes[[#This Row],[CLIENTS]],localisations[],3,0) -> Europe | I112: =TEXT(ventes[[#This Row],[DATES]],"mmm") -> févr | J112: =WEEKNUM(ventes[[#This Row],[DATES]]) -> 7
A113: 2021-02-09 | B113: client30 | C113: Produit32 | D113: 117.48 | E113: 14 | F113: =ventes[[#This Row],[PRIX UNITAIRE (FCFA)]]*ventes[[#This Row],[QUANTITE]] -> 1644.72 | G113: =VLOOKUP(ventes[[#This Row],[CLIENTS]],localisations[],2,0) -> Colombie | H113: =VLOOKUP(ventes[[#This Row],[CLIENTS]],localisations[],3,0) -> Amérique | I113: =TEXT(ventes[[#This Row],[DATES]],"mmm") -> févr | J113: =WEEKNUM(ventes[[#This Row],[DATES]]) -> 7
A114: 2021-02-10 | B114: client04 | C114: Produit19 | D114: 210 | E114: 4 | F114: =ventes[[#This Row],[PRIX UNITAIRE (FCFA)]]*ventes[[#This Row],[QUANTITE]] -> 840 | G114: =VLOOKUP(ventes[[#This Row],[CLIENTS]],localisations[],2,0) -> Sénégal | H114: =VLOOKUP(ventes[[#This Row],[CLIENTS]],localisations[],3,0) -> Afrique | I114: =TEXT(ventes[[#This Row],[DATES]],"mmm") -> févr | J114: =WEEKNUM(ventes[[#This Row],[DATES]]) -> 7
A115: 2021-02-10 | B115: client19 | C115: Produit08 | D115: 94.62 | E115: 38 | F115: =ventes[[#This Row],[PRIX UNITAIRE (FCFA)]]*ventes[[#This Row],[QUANTITE]] -> 3595.56 | G115: =VLOOKUP(ventes[[#This Row],[CLIENTS]],localisations[],2,0) -> Suisse | H115: =VLOOKUP(ventes[[#This Row],[CLIENTS]],localisations[],3,0) -> Europe | I115: =TEXT(ventes[[#This Row],[DATES]],"mmm") -> févr | J115: =WEEKNUM(ventes[[#This Row],[DATES]]) -> 7
A116: 2021-02-12 | B116: client01 | C116: Produit23 | D116: 149.46 | E116: 9 | F116: =ventes[[#This Row],[PRIX UNITAIRE (FCFA)]]*ventes[[#This Row],[QUANTITE]] -> 1345.14 | G116: =VLOOKUP(ventes[[#This Row],[CLIENTS]],localisations[],2,0) -> Tunisie | H116: =VLOOKUP(ventes[[#This Row],[CLIENTS]],localisations[],3,0) -> Afrique | I116: =TEXT(ventes[[#This Row],[DATES]],"mmm") -> févr | J116: =WEEKNUM(ventes[[#This Row],[DATES]]) -> 7
A117: 2021-02-12 | B117: client33 | C117: Produit10 | D117: 164.28 | E117: 13 | F117: =ventes[[#This Row],[PRIX UNITAIRE (FCFA)]]*ventes[[#This Row],[QUANTITE]] -> 2135.64 | G117: =VLOOKUP(ventes[[#This Row],[CLIENTS]],localisations[],2,0) -> Philippines | H117: =VLOOKUP(ventes[[#This Row],[CLIENTS]],localisations[],3,0) -> Asie | I117: =TEXT(ventes[[#This Row],[DATES]],"mmm") -> févr | J117: =WEEKNUM(ventes[[#This Row],[DATES]]) -> 7
A118: 2021-02-12 | B118: client15 | C118: Produit08 | D118: 94.62 | E118: 7 | F118: =ventes[[#This Row],[PRIX UNITAIRE (FCFA)]]*ventes[[#This Row],[QUANTITE]] -> 662.34 | G118: =VLOOKUP(ventes[[#This Row],[CLIENTS]],localisations[],2,0) -> Allemagne | H118: =VLOOKUP(ventes[[#This Row],[CLIENTS]],localisations[],3,0) -> Europe | I118: =TEXT(ventes[[#This Row],[DATES]],"mmm") -> févr | J118: =WEEKNUM(ventes[[#This Row],[DATES]]) -> 7
A119: 2021-02-13 | B119: client33 | C119: Produit03 | D119: 80.94 | E119: 17 | F119: =ventes[[#This Row],[PRIX UNITAIRE (FCFA)]]*ventes[[#This Row],[QUANTITE]] -> 1375.98 | G119: =VLOOKUP(ventes[[#This Row],[CLIENTS]],localisations[],2,0) -> Philippines | H119: =VLOOKUP(ventes[[#This Row],[CLIENTS]],localisations[],3,0) -> Asie | I119: =TEXT(ventes[[#This Row],[DATES]],"mmm") -> févr | J119: =WEEKNUM(ventes[[#This Row],[DATES]]) -> 7
A120: 2021-02-13 | B120: client36 | C120: Produit05 | D120: 155.61 | E120: 35 | F120: =ventes[[#This Row],[PRIX UNITAIRE (FCFA)]]*ventes[[#This Row],[QUANTITE]] -> 5446.35 | G120: =VLOOKUP(ventes[[#This Row],[CLIENTS]],localisations[],2,0) -> Vietnam | H120: =VLOOKUP(ventes[[#This Row],[CLIENTS]],localisations[],3,0) -> Asie | I120: =TEXT(ventes[[#This Row],[DATES]],"mmm") -> févr | J120: =WEEKNUM(ventes[[#This Row],[DATES]]) -> 7
A121: 2021-02-14 | B121: client01 | C121: Produit28 | D121: 41.81 | E121: 3 | F121: =ventes[[#This Row],[PRIX UNITAIRE (FCFA)]]*ventes[[#This Row],[QUANTITE]] -> 125.43 | G121: =VLOOKUP(ventes[[#This Row],[CLIENTS]],localisations[],2,0) -> Tunisie | H121: =VLOOKUP(ventes[[#This Row],[CLIENTS]],localisations[],3,0) -> Afrique | I121: =TEXT(ventes[[#This Row],[DATES]],"mmm") -> févr | J121: =WEEKNUM(ventes[[#This Row],[DATES]]) -> 8
A122: 2021-02-14 | B122: client21 | C122: Produit34 | D122: 58.3 | E122: 8 | F122: =ventes[[#This Row],[PRIX UNITAIRE (FCFA)]]*ventes[[#This Row],[QUANTITE]] -> 466.4 | G122: =VLOOKUP(ventes[[#This Row],[CLIENTS]],localisations[],2,0) -> Venezuela | H122: =VLOOKUP(ventes[[#This Row],[CLIENTS]],localisations[],3,0) -> Amérique | I122: =TEXT(ventes[[#This Row],[DATES]],"mmm") -> févr | J122: =WEEKNUM(ventes[[#This Row],[DATES]]) -> 8
A123: 2021-02-14 | B123: client30 | C123: Produit26 | D123: 24.66 | E123: 8 | F123: =ventes[[#This Row],[PRIX UNITAIRE (FCFA)]]*ventes[[#This Row],[QUANTITE]] -> 197.28 | G123: =VLOOKUP(ventes[[#This Row],[CLIENTS]],localisations[],2,0) -> Colombie | H123: =VLOOKUP(ventes[[#This Row],[CLIENTS]],localisations[],3,0) -> Amérique | I123: =TEXT(ventes[[#This Row],[DATES]],"mmm") -> févr | J123: =WEEKNUM(ventes[[#This Row],[DATES]]) -> 8
A124: 2021-02-15 | B124: client01 | C124: Produit29 | D124: 53.11 | E124: 28 | F124: =ventes[[#This Row],[PRIX UNITAIRE (FCFA)]]*ventes[[#This Row],[QUANTITE]] -> 1487.08 | G124: =VLOOKUP(ventes[[#This Row],[CLIENTS]],localisations[],2,0) -> Tunisie | H124: =VLOOKUP(ventes[[#This Row],[CLIENTS]],localisations[],3,0) -> Afrique | I124: =TEXT(ventes[[#This Row],[DATES]],"mmm") -> févr | J124: =WEEKNUM(ventes[[#This Row],[DATES]]) -> 8
A125: 2021-02-15 | B125: client06 | C125: Produit27 | D125: 57.12 | E125: 4 | F125: =ventes[[#This Row],[PRIX UNITAIRE (FCFA)]]*ventes[[#This Row],[QUANTITE]] -> 228.48 | G125: =VLOOKUP(ventes[[#This Row],[CLIENTS]],localisations[],2,0) -> Afrique du Sud | H125: =VLOOKUP(ventes[[#This Row],[CLIENTS]],localisations[],3,0) -> Afrique | I125: =TEXT(ventes[[#This Row],[DATES]],"mmm") -> févr | J125: =WEEKNUM(ventes[[#This Row],[DATES]]) -> 8
A126: 2021-02-16 | B126: client33 | C126: Produit15 | D126: 15.72 | E126: 26 | F126: =ventes[[#This Row],[PRIX UNITAIRE (FCFA)]]*ventes[[#This Row],[QUANTITE]] -> 408.72 | G126: =VLOOKUP(ventes[[#This Row],[CLIENTS]],localisations[],2,0) -> Philippines | H126: =VLOOKUP(ventes[[#This Row],[CLIENTS]],localisations[],3,0) -> Asie | I126: =TEXT(ventes[[#This Row],[DATES]],"mmm") -> févr | J126: =WEEKNUM(ventes[[#This Row],[DATES]]) -> 8
A127: 2021-02-16 | B127: client39 | C127: Produit32 | D127: 117.48 | E127: 1 | F127: =ventes[[#This Row],[PRIX UNITAIRE (FCFA)]]*ventes[[#This Row],[QUANTITE]] -> 117.48 | G127: =VLOOKUP(ventes[[#This Row],[CLIENTS]],localisations[],2,0) -> Pakistan | H127: =VLOOKUP(ventes[[#This Row],[CLIENTS]],localisations[],3,0) -> Asie | I127: =TEXT(ventes[[#This Row],[DATES]],"mmm") -> févr | J127: =WEEKNUM(ventes[[#This Row],[DATES]]) -> 8
A128: 2021-02-17 | B128: client15 | C128: Produit43 | D128: 83.08 | E128: 19 | F128: =ventes[[#This Row],[PRIX UNITAIRE (FCFA)]]*ventes[[#This Row],[QUANTITE]] -> 1578.52 | G128: =VLOOKUP(ventes[[#This Row],[CLIENTS]],localisations[],2,0) -> Allemagne | H128: =VLOOKUP(ventes[[#This Row],[CLIENTS]],localisations[],3,0) -> Europe | I128: =TEXT(ventes[[#This Row],[DATES]],"mmm") -> févr | J128: =WEEKNUM(ventes[[#This Row],[DATES]]) -> 8
A129: 2021-02-17 | B129: client15 | C129: Produit33 | D129: 119.7 | E129: 19 | F129: =ventes[[#This Row],[PRIX UNITAIRE (FCFA)]]*ventes[[#This Row],[QUANTITE]] -> 2274.3 | G129: =VLOOKUP(ventes[[#This Row],[CLIENTS]],localisations[],2,0) -> Allemagne | H129: =VLOOKUP(ventes[[#This Row],[CLIENTS]],localisations[],3,0) -> Europe | I129: =TEXT(ventes[[#This Row],[DATES]],"mmm") -> févr | J129: =WEEKNUM(ventes[[#This Row],[DATES]]) -> 8
A130: 2021-02-17 | B130: client24 | C130: Produit44 | D130: 82.08 | E130: 2 | F130: =ventes[[#This Row],[PRIX UNITAIRE (FCFA)]]*ventes[[#This Row],[QUANTITE]] -> 164.16 | G130: =VLOOKUP(ventes[[#This Row],[CLIENTS]],localisations[],2,0) -> Équateur | H130: =VLOOKUP(ventes[[#This Row],[CLIENTS]],localisations[],3,0) -> Amérique | I130: =TEXT(ventes[[#This Row],[DATES]],"mmm") -> févr | J130: =WEEKNUM(ventes[[#This Row],[DATES]]) -> 8
A131: 2021-02-18 | B131: client15 | C131: Produit15 | D131: 15.72 | E131: 6 | F131: =ventes[[#This Row],[PRIX UNITAIRE (FCFA)]]*ventes[[#This Row],[QUANTITE]] -> 94.32 | G131: =VLOOKUP(ventes[[#This Row],[CLIENTS]],localisations[],2,0) -> Allemagne | H131: =VLOOKUP(ventes[[#This Row],[CLIENTS]],localisations[],3,0) -> Europe | I131: =TEXT(ventes[[#This Row],[DATES]],"mmm") -> févr | J131: =WEEKNUM(ventes[[#This Row],[DATES]]) -> 8
A132: 2021-02-19 | B132: client33 | C132: Produit02 | D132: 142.8 | E132: 13 | F132: =ventes[[#This Row],[PRIX UNITAIRE (FCFA)]]*ventes[[#This Row],[QUANTITE]] -> 1856.4 | G132: =VLOOKUP(ventes[[#This Row],[CLIENTS]],localisations[],2,0) -> Philippines | H132: =VLOOKUP(ventes[[#This Row],[CLIENTS]],localisations[],3,0) -> Asie | I132: =TEXT(ventes[[#This Row],[DATES]],"mmm") -> févr | J132: =WEEKNUM(ventes[[#This Row],[DATES]]) -> 8
A133: 2021-02-20 | B133: client22 | C133: Produit12 | D133: 94.17 | E133: 6 | F133: =ventes[[#This Row],[PRIX UNITAIRE (FCFA)]]*ventes[[#This Row],[QUANTITE]] -> 565.02 | G133: =VLOOKUP(ventes[[#This Row],[CLIENTS]],localisations[],2,0) -> Canada | H133: =VLOOKUP(ventes[[#This Row],[CLIENTS]],localisations[],3,0) -> Amérique | I133: =TEXT(ventes[[#This Row],[DATES]],"mmm") -> févr | J133: =WEEKNUM(ventes[[#This Row],[DATES]]) -> 8
A134: 2021-02-20 | B134: client36 | C134: Produit30 | D134: 201.28 | E134: 11 | F134: =ventes[[#This Row],[PRIX UNITAIRE (FCFA)]]*ventes[[#This Row],[QUANTITE]] -> 2214.08 | G134: =VLOOKUP(ventes[[#This Row],[CLIENTS]],localisations[],2,0) -> Vietnam | H134: =VLOOKUP(ventes[[#This Row],[CLIENTS]],localisations[],3,0) -> Asie | I134: =TEXT(ventes[[#This Row],[DATES]],"mmm") -> févr | J134: =WEEKNUM(ventes[[#This Row],[DATES]]) -> 8
A135: 2021-02-21 | B135: client04 | C135: Produit18 | D135: 49.21 | E135: 30 | F135: =ventes[[#This Row],[PRIX UNITAIRE (FCFA)]]*ventes[[#This Row],[QUANTITE]] -> 1476.3 | G135: =VLOOKUP(ventes[[#This Row],[CLIENTS]],localisations[],2,0) -> Sénégal | H135: =VLOOKUP(ventes[[#This Row],[CLIENTS]],localisations[],3,0) -> Afrique | I135: =TEXT(ventes[[#This Row],[DATES]],"mmm") -> févr | J135: =WEEKNUM(ventes[[#This Row],[DATES]]) -> 9
A136: 2021-02-22 | B136: client20 | C136: Produit13 | D136: 122.08 | E136: 5 | F136: =ventes[[#This Row],[PRIX UNITAIRE (FCFA)]]*ventes[[#This Row],[QUANTITE]] -> 610.4 | G136: =VLOOKUP(ventes[[#This Row],[CLIENTS]],localisations[],2,0) -> France | H136: =VLOOKUP(ventes[[#This Row],[CLIENTS]],localisations[],3,0) -> Europe | I136: =TEXT(ventes[[#This Row],[DATES]],"mmm") -> févr | J136: =WEEKNUM(ventes[[#This Row],[DATES]]) -> 9
A137: 2021-02-23 | B137: client01 | C137: Produit13 | D137: 122.08 | E137: 6 | F137: =ventes[[#This Row],[PRIX UNITAIRE (FCFA)]]*ventes[[#This Row],[QUANTITE]] -> 732.48 | G137: =VLOOKUP(ventes[[#This Row],[CLIENTS]],localisations[],2,0) -> Tunisie | H137: =VLOOKUP(ventes[[#This Row],[CLIENTS]],localisations[],3,0) -> Afrique | I137: =TEXT(ventes[[#This Row],[DATES]],"mmm") -> févr | J137: =WEEKNUM(ventes[[#This Row],[DATES]]) -> 9
A138: 2021-02-23 | B138: client09 | C138: Produit25 | D138: 8.33 | E138: 3 | F138: =ventes[[#This Row],[PRIX UNITAIRE (FCFA)]]*ventes[[#This Row],[QUANTITE]] -> 24.99 | G138: =VLOOKUP(ventes[[#This Row],[CLIENTS]],localisations[],2,0) -> Égypte | H138: =VLOOKUP(ventes[[#This Row],[CLIENTS]],localisations[],3,0) -> Afrique | I138: =TEXT(ventes[[#This Row],[DATES]],"mmm") -> févr | J138: =WEEKNUM(ventes[[#This Row],[DATES]]) -> 9
A139: 2021-02-23 | B139: client35 | C139: Produit16 | D139: 16.64 | E139: 15 | F139: =ventes[[#This Row],[PRIX UNITAIRE (FCFA)]]*ventes[[#This Row],[QUANTITE]] -> 249.6 | G139: =VLOOKUP(ventes[[#This Row],[CLIENTS]],localisations[],2,0) -> Malaisie | H139: =VLOOKUP(ventes[[#This Row],[CLIENTS]],localisations[],3,0) -> Asie | I139: =TEXT(ventes[[#This Row],[DATES]],"mmm") -> févr | J139: =WEEKNUM(ventes[[#This Row],[DATES]]) -> 9
A140: 2021-02-23 | B140: client14 | C140: Produit05 | D140: 155.61 | E140: 2 | F140: =ventes[[#This Row],[PRIX UNITAIRE (FCFA)]]*ventes[[#This Row],[QUANTITE]] -> 311.22 | G140: =VLOOKUP(ventes[[#This Row],[CLIENTS]],localisations[],2,0) -> Pays-Bas | H140: =VLOOKUP(ventes[[#This Row],[CLIENTS]],localisations[],3,0) -> Europe | I140: =TEXT(ventes[[#This Row],[DATES]],"mmm") -> févr | J140: =WEEKNUM(ventes[[#This Row],[DATES]]) -> 9
A141: 2021-02-23 | B141: client36 | C141: Produit36 | D141: 96.3 | E141: 8 | F141: =ventes[[#This Row],[PRIX UNITAIRE (FCFA)]]*ventes[[#This Row],[QUANTITE]] -> 770.4 | G141: =VLOOKUP(ventes[[#This Row],[CLIENTS]],localisations[],2,0) -> Vietnam | H141: =VLOOKUP(ventes[[#This Row],[CLIENTS]],localisations[],3,0) -> Asie | I141: =TEXT(ventes[[#This Row],[DATES]],"mmm") -> févr | J141: =WEEKNUM(ventes[[#This Row],[DATES]]) -> 9
A142: 2021-02-25 | B142: client14 | C142: Produit13 | D142: 122.08 | E142: 10 | F142: =ventes[[#This Row],[PRIX UNITAIRE (FCFA)]]*ventes[[#This Row],[QUANTITE]] -> 1220.8 | G142: =VLOOKUP(ventes[[#This Row],[CLIENTS]],localisations[],2,0) -> Pays-Bas | H142: =VLOOKUP(ventes[[#This Row],[CLIENTS]],localisations[],3,0) -> Europe | I142: =TEXT(ventes[[#This Row],[DATES]],"mmm") -> févr | J142: =WEEKNUM(ventes[[#This Row],[DATES]]) -> 9
A143: 2021-02-25 | B143: client22 | C143: Produit39 | D143: 42.55 | E143: 38 | F143: =ventes[[#This Row],[PRIX UNITAIRE (FCFA)]]*ventes[[#This Row],[QUANTITE]] -> 1616.9 | G143: =VLOOKUP(ventes[[#This Row],[CLIENTS]],localisations[],2,0) -> Canada | H143: =VLOOKUP(ventes[[#This Row],[CLIENTS]],localisations[],3,0) -> Amérique | I143: =TEXT(ventes[[#This Row],[DATES]],"mmm") -> févr | J143: =WEEKNUM(ventes[[#This Row],[DATES]]) -> 9
A144: 2021-02-25 | B144: client25 | C144: Produit32 | D144: 117.48 | E144: 11 | F144: =ventes[[#This Row],[PRIX UNITAIRE (FCFA)]]*ventes[[#This Row],[QUANTITE]] -> 1292.28 | G144: =VLOOKUP(ventes[[#This Row],[CLIENTS]],localisations[],2,0) -> Brésil | H144: =VLOOKUP(ventes[[#This Row],[CLIENTS]],localisations[],3,0) -> Amérique | I144: =TEXT(ventes[[#This Row],[DATES]],"mmm") -> févr | J144: =WEEKNUM(ventes[[#This Row],[DATES]]) -> 9
A145: 2021-02-25 | B145: client27 | C145: Produit30 | D145: 201.28 | E145: 2 | F145: =ventes[[#This Row],[PRIX UNITAIRE (FCFA)]]*ventes[[#This Row],[QUANTITE]] -> 402.56 | G145: =VLOOKUP(ventes[[#This Row],[CLIENTS]],localisations[],2,0) -> Mexique | H145: =VLOOKUP(ventes[[#This Row],[CLIENTS]],localisations[],3,0) -> Amérique | I145: =TEXT(ventes[[#This Row],[DATES]],"mmm") -> févr | J145: =WEEKNUM(ventes[[#This Row],[DATES]]) -> 9
A146: 2021-02-25 | B146: client29 | C146: Produit02 | D146: 142.8 | E146: 4 | F146: =ventes[[#This Row],[PRIX UNITAIRE (FCFA)]]*ventes[[#This Row],[QUANTITE]] -> 571.2 | G146: =VLOOKUP(ventes[[#This Row],[CLIENTS]],localisations[],2,0) -> Chili | H146: =VLOOKUP(ventes[[#This Row],[CLIENTS]],localisations[],3,0) -> Amérique | I146: =TEXT(ventes[[#This Row],[DATES]],"mmm") -> févr | J146: =WEEKNUM(ventes[[#This Row],[DATES]]) -> 9
A147: 2021-02-26 | B147: client15 | C147: Produit24 | D147: 156.96 | E147: 28 | F147: =ventes[[#This Row],[PRIX UNITAIRE (FCFA)]]*ventes[[#This Row],[QUANTITE]] -> 4394.88 | G147: =VLOOKUP(ventes[[#This Row],[CLIENTS]],localisations[],2,0) -> Allemagne | H147: =VLOOKUP(ventes[[#This Row],[CLIENTS]],localisations[],3,0) -> Europe | I147: =TEXT(ventes[[#This Row],[DATES]],"mmm") -> févr | J147: =WEEKNUM(ventes[[#This Row],[DATES]]) -> 9
A148: 2021-02-26 | B148: client20 | C148: Produit09 | D148: 7.86 | E148: 2 | F148: =ventes[[#This Row],[PRIX UNITAIRE (FCFA)]]*ventes[[#This Row],[QUANTITE]] -> 15.72 | G148: =VLOOKUP(ventes[[#This Row],[CLIENTS]],localisations[],2,0) -> France | H148: =VLOOKUP(ventes[[#This Row],[CLIENTS]],localisations[],3,0) -> Europe | I148: =TEXT(ventes[[#This Row],[DATES]],"mmm") -> févr | J148: =WEEKNUM(ventes[[#This Row],[DATES]]) -> 9
A149: 2021-02-27 | B149: client12 | C149: Produit25 | D149: 8.33 | E149: 7 | F149: =ventes[[#This Row],[PRIX UNITAIRE (FCFA)]]*ventes[[#This Row],[QUANTITE]] -> 58.31 | G149: =VLOOKUP(ventes[[#This Row],[CLIENTS]],localisations[],2,0) -> Pologne | H149: =VLOOKUP(ventes[[#This Row],[CLIENTS]],localisations[],3,0) -> Europe | I149: =TEXT(ventes[[#This Row],[DATES]],"mmm") -> févr | J149: =WEEKNUM(ventes[[#This Row],[DATES]]) -> 9
A150: 2021-02-27 | B150: client35 | C150: Produit36 | D150: 96.3 | E150: 3 | F150: =ventes[[#This Row],[PRIX UNITAIRE (FCFA)]]*ventes[[#This Row],[QUANTITE]] -> 288.9 | G150: =VLOOKUP(ventes[[#This Row],[CLIENTS]],localisations[],2,0) -> Malaisie | H150: =VLOOKUP(ventes[[#This Row],[CLIENTS]],localisations[],3,0) -> Asie | I150: =TEXT(ventes[[#This Row],[DATES]],"mmm") -> févr | J150: =WEEKNUM(ventes[[#This Row],[DATES]]) -> 9
A151: 2021-02-27 | B151: client22 | C151: Produit18 | D151: 49.21 | E151: 11 | F151: =ventes[[#This Row],[PRIX UNITAIRE (FCFA)]]*ventes[[#This Row],[QUANTITE]] -> 541.31 | G151: =VLOOKUP(ventes[[#This Row],[CLIENTS]],localisations[],2,0) -> Canada | H151: =VLOOKUP(ventes[[#This Row],[CLIENTS]],localisations[],3,0) -> Amérique | I151: =TEXT(ventes[[#This Row],[DATES]],"mmm") -> févr | J151: =WEEKNUM(ventes[[#This Row],[DATES]]) -> 9
A152: 2021-02-27 | B152: client36 | C152: Produit05 | D152: 155.61 | E152: 15 | F152: =ventes[[#This Row],[PRIX UNITAIRE (FCFA)]]*ventes[[#This Row],[QUANTITE]] -> 2334.15 | G152: =VLOOKUP(ventes[[#This Row],[CLIENTS]],localisations[],2,0) -> Vietnam | H152: =VLOOKUP(ventes[[#This Row],[CLIENTS]],localisations[],3,0) -> Asie | I152: =TEXT(ventes[[#This Row],[DATES]],"mmm") -> févr | J152: =WEEKNUM(ventes[[#This Row],[DATES]]) -> 9
A153: 2021-02-27 | B153: client30 | C153: Produit12 | D153: 94.17 | E153: 7 | F153: =ventes[[#This Row],[PRIX UNITAIRE (FCFA)]]*ventes[[#This Row],[QUANTITE]] -> 659.19 | G153: =VLOOKUP(ventes[[#This Row],[CLIENTS]],localisations[],2,0) -> Colombie | H153: =VLOOKUP(ventes[[#This Row],[CLIENTS]],localisations[],3,0) -> Amérique | I153: =TEXT(ventes[[#This Row],[DATES]],"mmm") -> févr | J153: =WEEKNUM(ventes[[#This Row],[DATES]]) -> 9
A154: 2021-02-28 | B154: client39 | C154: Produit37 | D154: 85.76 | E154: 15 | F154: =ventes[[#This Row],[PRIX UNITAIRE (FCFA)]]*ventes[[#This Row],[QUANTITE]] -> 1286.4 | G154: =VLOOKUP(ventes[[#This Row],[CLIENTS]],localisations[],2,0) -> Pakistan | H154: =VLOOKUP(ventes[[#This Row],[CLIENTS]],localisations[],3,0) -> Asie | I154: =TEXT(ventes[[#This Row],[DATES]],"mmm") -> févr | J154: =WEEKNUM(ventes[[#This Row],[DATES]]) -> 10
A155: 2021-03-01 | B155: client24 | C155: Produit28 | D155: 41.81 | E155: 28 | F155: =ventes[[#This Row],[PRIX UNITAIRE (FCFA)]]*ventes[[#This Row],[QUANTITE]] -> 1170.68 | G155: =VLOOKUP(ventes[[#This Row],[CLIENTS]],localisations[],2,0) -> Équateur | H155: =VLOOKUP(ventes[[#This Row],[CLIENTS]],localisations[],3,0) -> Amérique | I155: =TEXT(ventes[[#This Row],[DATES]],"mmm") -> mars | J155: =WEEKNUM(ventes[[#This Row],[DATES]]) -> 10
A156: 2021-03-02 | B156: client15 | C156: Produit24 | D156: 156.96 | E156: 21 | F156: =ventes[[#This Row],[PRIX UNITAIRE (FCFA)]]*ventes[[#This Row],[QUANTITE]] -> 3296.16 | G156: =VLOOKUP(ventes[[#This Row],[CLIENTS]],localisations[],2,0) -> Allemagne | H156: =VLOOKUP(ventes[[#This Row],[CLIENTS]],localisations[],3,0) -> Europe | I156: =TEXT(ventes[[#This Row],[DATES]],"mmm") -> mars | J156: =WEEKNUM(ventes[[#This Row],[DATES]]) -> 10
A157: 2021-03-02 | B157: client18 | C157: Produit02 | D157: 142.8 | E157: 1 | F157: =ventes[[#This Row],[PRIX UNITAIRE (FCFA)]]*ventes[[#This Row],[QUANTITE]] -> 142.8 | G157: =VLOOKUP(ventes[[#This Row],[CLIENTS]],localisations[],2,0) -> Belgique | H157: =VLOOKUP(ventes[[#This Row],[CLIENTS]],localisations[],3,0) -> Europe | I157: =TEXT(ventes[[#This Row],[DATES]],"mmm") -> mars | J157: =WEEKNUM(ventes[[#This Row],[DATES]]) -> 10
A158: 2021-03-02 | B158: client22 | C158: Produit01 | D158: 103.88 | E158: 30 | F158: =ventes[[#This Row],[PRIX UNITAIRE (FCFA)]]*ventes[[#This Row],[QUANTITE]] -> 3116.4 | G158: =VLOOKUP(ventes[[#This Row],[CLIENTS]],localisations[],2,0) -> Canada | H158: =VLOOKUP(ventes[[#This Row],[CLIENTS]],localisations[],3,0) -> Amérique | I158: =TEXT(ventes[[#This Row],[DATES]],"mmm") -> mars | J158: =WEEKNUM(ventes[[#This Row],[DATES]]) -> 10
A159: 2021-03-03 | B159: client09 | C159: Produit11 | D159: 48.4 | E159: 1 | F159: =ventes[[#This Row],[PRIX UNITAIRE (FCFA)]]*ventes[[#This Row],[QUANTITE]] -> 48.4 | G159: =VLOOKUP(ventes[[#This Row],[CLIENTS]],localisations[],2,0) -> Égypte | H159: =VLOOKUP(ventes[[#This Row],[CLIENTS]],localisations[],3,0) -> Afrique | I159: =TEXT(ventes[[#This Row],[DATES]],"mmm") -> mars | J159: =WEEKNUM(ventes[[#This Row],[DATES]]) -> 10
A160: 2021-03-03 | B160: client12 | C160: Produit36 | D160: 96.3 | E160: 29 | F160: =ventes[[#This Row],[PRIX UNITAIRE (FCFA)]]*ventes[[#This Row],[QUANTITE]] -> 2792.7 | G160: =VLOOKUP(ventes[[#This Row],[CLIENTS]],localisations[],2,0) -> Pologne | H160: =VLOOKUP(ventes[[#This Row],[CLIENTS]],localisations[],3,0) -> Europe | I160: =TEXT(ventes[[#This Row],[DATES]],"mmm") -> mars | J160: =WEEKNUM(ventes[[#This Row],[DATES]]) -> 10
A161: 2021-03-04 | B161: client18 | C161: Produit26 | D161: 24.66 | E161: 13 | F161: =ventes[[#This Row],[PRIX UNITAIRE (FCFA)]]*ventes[[#This Row],[QUANTITE]] -> 320.58 | G161: =VLOOKUP(ventes[[#This Row],[CLIENTS]],localisations[],2,0) -> Belgique | H161: =VLOOKUP(ventes[[#This Row],[CLIENTS]],localisations[],3,0) -> Europe | I161: =TEXT(ventes[[#This Row],[DATES]],"mmm") -> mars | J161: =WEEKNUM(ventes[[#This Row],[DATES]]) -> 10
A162: 2021-03-04 | B162: client24 | C162: Produit04 | D162: 48.84 | E162: 23 | F162: =ventes[[#This Row],[PRIX UNITAIRE (FCFA)]]*ventes[[#This Row],[QUANTITE]] -> 1123.32 | G162: =VLOOKUP(ventes[[#This Row],[CLIENTS]],localisations[],2,0) -> Équateur | H162: =VLOOKUP(ventes[[#This Row],[CLIENTS]],localisations[],3,0) -> Amérique | I162: =TEXT(ventes[[#This Row],[DATES]],"mmm") -> mars | J162: =WEEKNUM(ventes[[#This Row],[DATES]]) -> 10
A163: 2021-03-04 | B163: client25 | C163: Produit25 | D163: 8.33 | E163: 26 | F163: =ventes[[#This Row],[PRIX UNITAIRE (FCFA)]]*ventes[[#This Row],[QUANTITE]] -> 216.58 | G163: =VLOOKUP(ventes[[#This Row],[CLIENTS]],localisations[],2,0) -> Brésil | H163: =VLOOKUP(ventes[[#This Row],[CLIENTS]],localisations[],3,0) -> Amérique | I163: =TEXT(ventes[[#This Row],[DATES]],"mmm") -> mars | J163: =WEEKNUM(ventes[[#This Row],[DATES]]) -> 10
A164: 2021-03-05 | B164: client22 | C164: Produit40 | D164: 115.2 | E164: 33 | F164: =ventes[[#This Row],[PRIX UNITAIRE (FCFA)]]*ventes[[#This Row],[QUANTITE]] -> 3801.6 | G164: =VLOOKUP(ventes[[#This Row],[CLIENTS]],localisations[],2,0) -> Canada | H164: =VLOOKUP(ventes[[#This Row],[CLIENTS]],localisations[],3,0) -> Amérique | I164: =TEXT(ventes[[#This Row],[DATES]],"mmm") -> mars | J164: =WEEKNUM(ventes[[#This Row],[DATES]]) -> 10
A165: 2021-03-06 | B165: client18 | C165: Produit04 | D165: 48.84 | E165: 2 | F165: =ventes[[#This Row],[PRIX UNITAIRE (FCFA)]]*ventes[[#This Row],[QUANTITE]] -> 97.68 | G165: =VLOOKUP(ventes[[#This Row],[CLIENTS]],localisations[],2,0) -> Belgique | H165: =VLOOKUP(ventes[[#This Row],[CLIENTS]],localisations[],3,0) -> Europe | I165: =TEXT(ventes[[#This Row],[DATES]],"mmm") -> mars | J165: =WEEKNUM(ventes[[#This Row],[DATES]]) -> 10
A166: 2021-03-07 | B166: client01 | C166: Produit03 | D166: 80.94 | E166: 1 | F166: =ventes[[#This Row],[PRIX UNITAIRE (FCFA)]]*ventes[[#This Row],[QUANTITE]] -> 80.94 | G166: =VLOOKUP(ventes[[#This Row],[CLIENTS]],localisations[],2,0) -> Tunisie | H166: =VLOOKUP(ventes[[#This Row],[CLIENTS]],localisations[],3,0) -> Afrique | I166: =TEXT(ventes[[#This Row],[DATES]],"mmm") -> mars | J166: =WEEKNUM(ventes[[#This Row],[DATES]]) -> 11
A167: 2021-03-07 | B167: client33 | C167: Produit21 | D167: 162.54 | E167: 9 | F167: =ventes[[#This Row],[PRIX UNITAIRE (FCFA)]]*ventes[[#This Row],[QUANTITE]] -> 1462.86 | G167: =VLOOKUP(ventes[[#This Row],[CLIENTS]],localisations[],2,0) -> Philippines | H167: =VLOOKUP(ventes[[#This Row],[CLIENTS]],localisations[],3,0) -> Asie | I167: =TEXT(ventes[[#This Row],[DATES]],"mmm") -> mars | J167: =WEEKNUM(ventes[[#This Row],[DATES]]) -> 11
A168: 2021-03-07 | B168: client12 | C168: Produit17 | D168: 156.78 | E168: 25 | F168: =ventes[[#This Row],[PRIX UNITAIRE (FCFA)]]*ventes[[#This Row],[QUANTITE]] -> 3919.5 | G168: =VLOOKUP(ventes[[#This Row],[CLIENTS]],localisations[],2,0) -> Pologne | H168: =VLOOKUP(ventes[[#This Row],[CLIENTS]],localisations[],3,0) -> Europe | I168: =TEXT(ventes[[#This Row],[DATES]],"mmm") -> mars | J168: =WEEKNUM(ventes[[#This Row],[DATES]]) -> 11
A169: 2021-03-08 | B169: client31 | C169: Produit22 | D169: 141.57 | E169: 22 | F169: =ventes[[#This Row],[PRIX UNITAIRE (FCFA)]]*ventes[[#This Row],[QUANTITE]] -> 3114.54 | G169: =VLOOKUP(ventes[[#This Row],[CLIENTS]],localisations[],2,0) -> Corée du Sud | H169: =VLOOKUP(ventes[[#This Row],[CLIENTS]],localisations[],3,0) -> Asie | I169: =TEXT(ventes[[#This Row],[DATES]],"mmm") -> mars | J169: =WEEKNUM(ventes[[#This Row],[DATES]]) -> 11
A170: 2021-03-08 | B170: client18 | C170: Produit44 | D170: 82.08 | E170: 9 | F170: =ventes[[#This Row],[PRIX UNITAIRE (FCFA)]]*ventes[[#This Row],[QUANTITE]] -> 738.72 | G170: =VLOOKUP(ventes[[#This Row],[CLIENTS]],localisations[],2,0) -> Belgique | H170: =VLOOKUP(ventes[[#This Row],[CLIENTS]],localisations[],3,0) -> Europe | I170: =TEXT(ventes[[#This Row],[DATES]],"mmm") -> mars | J170: =WEEKNUM(ventes[[#This Row],[DATES]]) -> 11
A171: 2021-03-08 | B171: client25 | C171: Produit27 | D171: 57.12 | E171: 6 | F171: =ventes[[#This Row],[PRIX UNITAIRE (FCFA)]]*ventes[[#This Row],[QUANTITE]] -> 342.72 | G171: =VLOOKUP(ventes[[#This Row],[CLIENTS]],localisations[],2,0) -> Brésil | H171: =VLOOKUP(ventes[[#This Row],[CLIENTS]],localisations[],3,0) -> Amérique | I171: =TEXT(ventes[[#This Row],[DATES]],"mmm") -> mars | J171: =WEEKNUM(ventes[[#This Row],[DATES]]) -> 11
A172: 2021-03-08 | B172: client30 | C172: Produit44 | D172: 82.08 | E172: 6 | F172: =ventes[[#This Row],[PRIX UNITAIRE (FCFA)]]*ventes[[#This Row],[QUANTITE]] -> 492.48 | G172: =VLOOKUP(ventes[[#This Row],[CLIENTS]],localisations[],2,0) -> Colombie | H172: =VLOOKUP(ventes[[#This Row],[CLIENTS]],localisations[],3,0) -> Amérique | I172: =TEXT(ventes[[#This Row],[DATES]],"mmm") -> mars | J172: =WEEKNUM(ventes[[#This Row],[DATES]]) -> 11
A173: 2021-03-09 | B173: client04 | C173: Produit30 | D173: 201.28 | E173: 3 | F173: =ventes[[#This Row],[PRIX UNITAIRE (FCFA)]]*ventes[[#This Row],[QUANTITE]] -> 603.84 | G173: =VLOOKUP(ventes[[#This Row],[CLIENTS]],localisations[],2,0) -> Sénégal | H173: =VLOOKUP(ventes[[#This Row],[CLIENTS]],localisations[],3,0) -> Afrique | I173: =TEXT(ventes[[#This Row],[DATES]],"mmm") -> mars | J173: =WEEKNUM(ventes[[#This Row],[DATES]]) -> 11
A174: 2021-03-09 | B174: client16 | C174: Produit04 | D174: 48.84 | E174: 11 | F174: =ventes[[#This Row],[PRIX UNITAIRE (FCFA)]]*ventes[[#This Row],[QUANTITE]] -> 537.24 | G174: =VLOOKUP(ventes[[#This Row],[CLIENTS]],localisations[],2,0) -> Royaume-Uni | H174: =VLOOKUP(ventes[[#This Row],[CLIENTS]],localisations[],3,0) -> Europe | I174: =TEXT(ventes[[#This Row],[DATES]],"mmm") -> mars | J174: =WEEKNUM(ventes[[#This Row],[DATES]]) -> 11
A175: 2021-03-09 | B175: client18 | C175: Produit29 | D175: 53.11 | E175: 6 | F175: =ventes[[#This Row],[PRIX UNITAIRE (FCFA)]]*ventes[[#This Row],[QUANTITE]] -> 318.66 | G175: =VLOOKUP(ventes[[#This Row],[CLIENTS]],localisations[],2,0) -> Belgique | H175: =VLOOKUP(ventes[[#This Row],[CLIENTS]],localisations[],3,0) -> Europe | I175: =TEXT(ventes[[#This Row],[DATES]],"mmm") -> mars | J175: =WEEKNUM(ventes[[#This Row],[DATES]]) -> 11
A176: 2021-03-10 | B176: client02 | C176: Produit33 | D176: 119.7 | E176: 12 | F176: =ventes[[#This Row],[PRIX UNITAIRE (FCFA)]]*ventes[[#This Row],[QUANTITE]] -> 1436.4 | G176: =VLOOKUP(ventes[[#This Row],[CLIENTS]],localisations[],2,0) -> Ghana | H176: =VLOOKUP(ventes[[#This Row],[CLIENTS]],localisations[],3,0) -> Afrique | I176: =TEXT(ventes[[#This Row],[DATES]],"mmm") -> mars | J176: =WEEKNUM(ventes[[#This Row],[DATES]]) -> 11
A177: 2021-03-10 | B177: client16 | C177: Produit02 | D177: 142.8 | E177: 6 | F177: =ventes[[#This Row],[PRIX UNITAIRE (FCFA)]]*ventes[[#This Row],[QUANTITE]] -> 856.8 | G177: =VLOOKUP(ventes[[#This Row],[CLIENTS]],localisations[],2,0) -> Royaume-Uni | H177: =VLOOKUP(ventes[[#This Row],[CLIENTS]],localisations[],3,0) -> Europe | I177: =TEXT(ventes[[#This Row],[DATES]],"mmm") -> mars | J177: =WEEKNUM(ventes[[#This Row],[DATES]]) -> 11
A178: 2021-03-11 | B178: client17 | C178: Produit32 | D178: 117.48 | E178: 8 | F178: =ventes[[#This Row],[PRIX UNITAIRE (FCFA)]]*ventes[[#This Row],[QUANTITE]] -> 939.84 | G178: =VLOOKUP(ventes[[#This Row],[CLIENTS]],localisations[],2,0) -> Suède | H178: =VLOOKUP(ventes[[#This Row],[CLIENTS]],localisations[],3,0) -> Europe | I178: =TEXT(ventes[[#This Row],[DATES]],"mmm") -> mars | J178: =WEEKNUM(ventes[[#This Row],[DATES]]) -> 11
A179: 2021-03-11 | B179: client18 | C179: Produit25 | D179: 8.33 | E179: 11 | F179: =ventes[[#This Row],[PRIX UNITAIRE (FCFA)]]*ventes[[#This Row],[QUANTITE]] -> 91.63 | G179: =VLOOKUP(ventes[[#This Row],[CLIENTS]],localisations[],2,0) -> Belgique | H179: =VLOOKUP(ventes[[#This Row],[CLIENTS]],localisations[],3,0) -> Europe | I179: =TEXT(ventes[[#This Row],[DATES]],"mmm") -> mars | J179: =WEEKNUM(ventes[[#This Row],[DATES]]) -> 11
A180: 2021-03-11 | B180: client29 | C180: Produit12 | D180: 94.17 | E180: 36 | F180: =ventes[[#This Row],[PRIX UNITAIRE (FCFA)]]*ventes[[#This Row],[QUANTITE]] -> 3390.12 | G180: =VLOOKUP(ventes[[#This Row],[CLIENTS]],localisations[],2,0) -> Chili | H180: =VLOOKUP(ventes[[#This Row],[CLIENTS]],localisations[],3,0) -> Amérique | I180: =TEXT(ventes[[#This Row],[DATES]],"mmm") -> mars | J180: =WEEKNUM(ventes[[#This Row],[DATES]]) -> 11
A181: 2021-03-13 | B181: client09 | C181: Produit35 | D181: 6.7 | E181: 10 | F181: =ventes[[#This Row],[PRIX UNITAIRE (FCFA)]]*ventes[[#This Row],[QUANTITE]] -> 67 | G181: =VLOOKUP(ventes[[#This Row],[CLIENTS]],localisations[],2,0) -> Égypte | H181: =VLOOKUP(ventes[[#This Row],[CLIENTS]],localisations[],3,0) -> Afrique | I181: =TEXT(ventes[[#This Row],[DATES]],"mmm") -> mars | J181: =WEEKNUM(ventes[[#This Row],[DATES]]) -> 11
A182: 2021-03-13 | B182: client14 | C182: Produit28 | D182: 41.81 | E182: 10 | F182: =ventes[[#This Row],[PRIX UNITAIRE (FCFA)]]*ventes[[#This Row],[QUANTITE]] -> 418.1 | G182: =VLOOKUP(ventes[[#This Row],[CLIENTS]],localisations[],2,0) -> Pays-Bas | H182: =VLOOKUP(ventes[[#This Row],[CLIENTS]],localisations[],3,0) -> Europe | I182: =TEXT(ventes[[#This Row],[DATES]],"mmm") -> mars | J182: =WEEKNUM(ventes[[#This Row],[DATES]]) -> 11
A183: 2021-03-14 | B183: client04 | C183: Produit22 | D183: 141.57 | E183: 15 | F183: =ventes[[#This Row],[PRIX UNITAIRE (FCFA)]]*ventes[[#This Row],[QUANTITE]] -> 2123.55 | G183: =VLOOKUP(ventes[[#This Row],[CLIENTS]],localisations[],2,0) -> Sénégal | H183: =VLOOKUP(ventes[[#This Row],[CLIENTS]],localisations[],3,0) -> Afrique | I183: =TEXT(ventes[[#This Row],[DATES]],"mmm") -> mars | J183: =WEEKNUM(ventes[[#This Row],[DATES]]) -> 12
A184: 2021-03-14 | B184: client15 | C184: Produit16 | D184: 16.64 | E184: 2 | F184: =ventes[[#This Row],[PRIX UNITAIRE (FCFA)]]*ventes[[#This Row],[QUANTITE]] -> 33.28 | G184: =VLOOKUP(ventes[[#This Row],[CLIENTS]],localisations[],2,0) -> Allemagne | H184: =VLOOKUP(ventes[[#This Row],[CLIENTS]],localisations[],3,0) -> Europe | I184: =TEXT(ventes[[#This Row],[DATES]],"mmm") -> mars | J184: =WEEKNUM(ventes[[#This Row],[DATES]]) -> 12
A185: 2021-03-14 | B185: client20 | C185: Produit42 | D185: 162 | E185: 32 | F185: =ventes[[#This Row],[PRIX UNITAIRE (FCFA)]]*ventes[[#This Row],[QUANTITE]] -> 5184 | G185: =VLOOKUP(ventes[[#This Row],[CLIENTS]],localisations[],2,0) -> France | H185: =VLOOKUP(ventes[[#This Row],[CLIENTS]],localisations[],3,0) -> Europe | I185: =TEXT(ventes[[#This Row],[DATES]],"mmm") -> mars | J185: =WEEKNUM(ventes[[#This Row],[DATES]]) -> 12
A186: 2021-03-14 | B186: client39 | C186: Produit26 | D186: 24.66 | E186: 13 | F186: =ventes[[#This Row],[PRIX UNITAIRE (FCFA)]]*ventes[[#This Row],[QUANTITE]] -> 320.58 | G186: =VLOOKUP(ventes[[#This Row],[CLIENTS]],localisations[],2,0) -> Pakistan | H186: =VLOOKUP(ventes[[#This Row],[CLIENTS]],localisations[],3,0) -> Asie | I186: =TEXT(ventes[[#This Row],[DATES]],"mmm") -> mars | J186: =WEEKNUM(ventes[[#This Row],[DATES]]) -> 12
A187: 2021-03-15 | B187: client14 | C187: Produit36 | D187: 96.3 | E187: 9 | F187: =ventes[[#This Row],[PRIX UNITAIRE (FCFA)]]*ventes[[#This Row],[QUANTITE]] -> 866.7 | G187: =VLOOKUP(ventes[[#This Row],[CLIENTS]],localisations[],2,0) -> Pays-Bas | H187: =VLOOKUP(ventes[[#This Row],[CLIENTS]],localisations[],3,0) -> Europe | I187: =TEXT(ventes[[#This Row],[DATES]],"mmm") -> mars | J187: =WEEKNUM(ventes[[#This Row],[DATES]]) -> 12
A188: 2021-03-15 | B188: client22 | C188: Produit39 | D188: 42.55 | E188: 11 | F188: =ventes[[#This Row],[PRIX UNITAIRE (FCFA)]]*ventes[[#This Row],[QUANTITE]] -> 468.05 | G188: =VLOOKUP(ventes[[#This Row],[CLIENTS]],localisations[],2,0) -> Canada | H188: =VLOOKUP(ventes[[#This Row],[CLIENTS]],localisations[],3,0) -> Amérique | I188: =TEXT(ventes[[#This Row],[DATES]],"mmm") -> mars | J188: =WEEKNUM(ventes[[#This Row],[DATES]]) -> 12
A189: 2021-03-16 | B189: client04 | C189: Produit12 | D189: 94.17 | E189: 14 | F189: =ventes[[#This Row],[PRIX UNITAIRE (FCFA)]]*ventes[[#This Row],[QUANTITE]] -> 1318.38 | G189: =VLOOKUP(ventes[[#This Row],[CLIENTS]],localisations[],2,0) -> Sénégal | H189: =VLOOKUP(ventes[[#This Row],[CLIENTS]],localisations[],3,0) -> Afrique | I189: =TEXT(ventes[[#This Row],[DATES]],"mmm") -> mars | J189: =WEEKNUM(ventes[[#This Row],[DATES]]) -> 12
A190: 2021-03-16 | B190: client30 | C190: Produit22 | D190: 141.57 | E190: 29 | F190: =ventes[[#This Row],[PRIX UNITAIRE (FCFA)]]*ventes[[#This Row],[QUANTITE]] -> 4105.53 | G190: =VLOOKUP(ventes[[#This Row],[CLIENTS]],localisations[],2,0) -> Colombie | H190: =VLOOKUP(ventes[[#This Row],[CLIENTS]],localisations[],3,0) -> Amérique | I190: =TEXT(ventes[[#This Row],[DATES]],"mmm") -> mars | J190: =WEEKNUM(ventes[[#This Row],[DATES]]) -> 12
A191: 2021-03-18 | B191: client04 | C191: Produit42 | D191: 162 | E191: 8 | F191: =ventes[[#This Row],[PRIX UNITAIRE (FCFA)]]*ventes[[#This Row],[QUANTITE]] -> 1296 | G191: =VLOOKUP(ventes[[#This Row],[CLIENTS]],localisations[],2,0) -> Sénégal | H191: =VLOOKUP(ventes[[#This Row],[CLIENTS]],localisations[],3,0) -> Afrique | I191: =TEXT(ventes[[#This Row],[DATES]],"mmm") -> mars | J191: =WEEKNUM(ventes[[#This Row],[DATES]]) -> 12
A192: 2021-03-18 | B192: client08 | C192: Produit19 | D192: 210 | E192: 2 | F192: =ventes[[#This Row],[PRIX UNITAIRE (FCFA)]]*ventes[[#This Row],[QUANTITE]] -> 420 | G192: =VLOOKUP(ventes[[#This Row],[CLIENTS]],localisations[],2,0) -> Maroc | H192: =VLOOKUP(ventes[[#This Row],[CLIENTS]],localisations[],3,0) -> Afrique | I192: =TEXT(ventes[[#This Row],[DATES]],"mmm") -> mars | J192: =WEEKNUM(ventes[[#This Row],[DATES]]) -> 12
A193: 2021-03-18 | B193: client09 | C193: Produit27 | D193: 57.12 | E193: 10 | F193: =ventes[[#This Row],[PRIX UNITAIRE (FCFA)]]*ventes[[#This Row],[QUANTITE]] -> 571.2 | G193: =VLOOKUP(ventes[[#This Row],[CLIENTS]],localisations[],2,0) -> Égypte | H193: =VLOOKUP(ventes[[#This Row],[CLIENTS]],localisations[],3,0) -> Afrique | I193: =TEXT(ventes[[#This Row],[DATES]],"mmm") -> mars | J193: =WEEKNUM(ventes[[#This Row],[DATES]]) -> 12
A194: 2021-03-19 | B194: client06 | C194: Produit39 | D194: 42.55 | E194: 18 | F194: =ventes[[#This Row],[PRIX UNITAIRE (FCFA)]]*ventes[[#This Row],[QUANTITE]] -> 765.9 | G194: =VLOOKUP(ventes[[#This Row],[CLIENTS]],localisations[],2,0) -> Afrique du Sud | H194: =VLOOKUP(ventes[[#This Row],[CLIENTS]],localisations[],3,0) -> Afrique | I194: =TEXT(ventes[[#This Row],[DATES]],"mmm") -> mars | J194: =WEEKNUM(ventes[[#This Row],[DATES]]) -> 12
A195: 2021-03-19 | B195: client15 | C195: Produit06 | D195: 85.5 | E195: 17 | F195: =ventes[[#This Row],[PRIX UNITAIRE (FCFA)]]*ventes[[#This Row],[QUANTITE]] -> 1453.5 | G195: =VLOOKUP(ventes[[#This Row],[CLIENTS]],localisations[],2,0) -> Allemagne | H195: =VLOOKUP(ventes[[#This Row],[CLIENTS]],localisations[],3,0) -> Europe | I195: =TEXT(ventes[[#This Row],[DATES]],"mmm") -> mars | J195: =WEEKNUM(ventes[[#This Row],[DATES]]) -> 12
A196: 2021-03-19 | B196: client21 | C196: Produit28 | D196: 41.81 | E196: 9 | F196: =ventes[[#This Row],[PRIX UNITAIRE (FCFA)]]*ventes[[#This Row],[QUANTITE]] -> 376.29 | G196: =VLOOKUP(ventes[[#This Row],[CLIENTS]],localisations[],2,0) -> Venezuela | H196: =VLOOKUP(ventes[[#This Row],[CLIENTS]],localisations[],3,0) -> Amérique | I196: =TEXT(ventes[[#This Row],[DATES]],"mmm") -> mars | J196: =WEEKNUM(ventes[[#This Row],[DATES]]) -> 12
A197: 2021-03-19 | B197: client24 | C197: Produit06 | D197: 85.5 | E197: 17 | F197: =ventes[[#This Row],[PRIX UNITAIRE (FCFA)]]*ventes[[#This Row],[QUANTITE]] -> 1453.5 | G197: =VLOOKUP(ventes[[#This Row],[CLIENTS]],localisations[],2,0) -> Équateur | H197: =VLOOKUP(ventes[[#This Row],[CLIENTS]],localisations[],3,0) -> Amérique | I197: =TEXT(ventes[[#This Row],[DATES]],"mmm") -> mars | J197: =WEEKNUM(ventes[[#This Row],[DATES]]) -> 12
A198: 2021-03-19 | B198: client26 | C198: Produit02 | D198: 142.8 | E198: 15 | F198: =ventes[[#This Row],[PRIX UNITAIRE (FCFA)]]*ventes[[#This Row],[QUANTITE]] -> 2142 | G198: =VLOOKUP(ventes[[#This Row],[CLIENTS]],localisations[],2,0) -> Pérou | H198: =VLOOKUP(ventes[[#This Row],[CLIENTS]],localisations[],3,0) -> Amérique | I198: =TEXT(ventes[[#This Row],[DATES]],"mmm") -> mars | J198: =WEEKNUM(ventes[[#This Row],[DATES]]) -> 12
A199: 2021-03-19 | B199: client27 | C199: Produit41 | D199: 173.88 | E199: 6 | F199: =ventes[[#This Row],[PRIX UNITAIRE (FCFA)]]*ventes[[#This Row],[QUANTITE]] -> 1043.28 | G199: =VLOOKUP(ventes[[#This Row],[CLIENTS]],localisations[],2,0) -> Mexique | H199: =VLOOKUP(ventes[[#This Row],[CLIENTS]],localisations[],3,0) -> Amérique | I199: =TEXT(ventes[[#This Row],[DATES]],"mmm") -> mars | J199: =WEEKNUM(ventes[[#This Row],[DATES]]) -> 12
A200: 2021-03-20 | B200: client02 | C200: Produit24 | D200: 156.96 | E200: 23 | F200: =ventes[[#This Row],[PRIX UNITAIRE (FCFA)]]*ventes[[#This Row],[QUANTITE]] -> 3610.08 | G200: =VLOOKUP(ventes[[#This Row],[CLIENTS]],localisations[],2,0) -> Ghana | H200: =VLOOKUP(ventes[[#This Row],[CLIENTS]],localisations[],3,0) -> Afrique | I200: =TEXT(ventes[[#This Row],[DATES]],"mmm") -> mars | J200: =WEEKNUM(ventes[[#This Row],[DATES]]) -> 12
A201: 2021-03-20 | B201: client05 | C201: Produit38 | D201: 79.92 | E201: 21 | F201: =ventes[[#This Row],[PRIX UNITAIRE (FCFA)]]*ventes[[#This Row],[QUANTITE]] -> 1678.32 | G201: =VLOOKUP(ventes[[#This Row],[CLIENTS]],localisations[],2,0) -> Algérie | H201: =VLOOKUP(ventes[[#This Row],[CLIENTS]],localisations[],3,0) -> Afrique | I201: =TEXT(ventes[[#This Row],[DATES]],"mmm") -> mars | J201: =WEEKNUM(ventes[[#This Row],[DATES]]) -> 12
... 631 more rows

Sheet Localisations
A1: Clients | B1: Pays | C1: Région
A2: Client01 | B2: Tunisie | C2: Afrique
A3: Client02 | B3: Ghana | C3: Afrique
A4: Client03 | B4: Côte d'Ivoire | C4: Afrique
A5: Client04 | B5: Sénégal | C5: Afrique
A6: Client05 | B6: Algérie | C6: Afrique
A7: Client06 | B7: Afrique du Sud | C7: Afrique
A8: Client07 | B8: Éthiopie | C8: Afrique
A9: Client08 | B9: Maroc | C9: Afrique
A10: Client09 | B10: Égypte | C10: Afrique
A11: Client10 | B11: Nigeria | C11: Afrique
A12: Client11 | B12: Espagne | C12: Europe
A13: Client12 | B13: Pologne | C13: Europe
A14: Client13 | B14: Italie | C14: Europe
A15: Client14 | B15: Pays-Bas | C15: Europe
A16: Client15 | B16: Allemagne | C16: Europe
A17: Client16 | B17: Royaume-Uni | C17: Europe
A18: Client17 | B18: Suède | C18: Europe
A19: Client18 | B19: Belgique | C19: Europe
A20: Client19 | B20: Suisse | C20: Europe
A21: Client20 | B21: France | C21: Europe
A22: Client21 | B22: Venezuela | C22: Amérique
A23: Client22 | B23: Canada | C23: Amérique
A24: Client23 | B24: Argentine | C24: Amérique
A25: Client24 | B25: Équateur | C25: Amérique
A26: Client25 | B26: Brésil | C26: Amérique
A27: Client26 | B27: Pérou | C27: Amérique
A28: Client27 | B28: Mexique | C28: Amérique
A29: Client28 | B29: États-Unis | C29: Amérique
A30: Client29 | B30: Chili | C30: Amérique
A31: Client30 | B31: Colombie | C31: Amérique
A32: Client31 | B32: Corée du Sud | C32: Asie
A33: Client32 | B33: Indonésie | C33: Asie
A34: Client33 | B34: Philippines | C34: Asie
A35: Client34 | B35: Japon | C35: Asie
A36: Client35 | B36: Malaisie | C36: Asie
A37: Client36 | B37: Vietnam | C37: Asie
A38: Client37 | B38: Inde | C38: Asie
A39: Client38 | B39: Pakistan | C39: Asie
A40: Client39 | B40: Pakistan | C40: Asie
A41: Client40 | B41: Pakistan | C41: Asie

Sheet Objectifs
A1: numero_mois | B1: Mois | C1: Objectif financier | D1: Chiffre d'Affaires | E1: En dessous | F1: Au dessus
A2: 1 | B2: janv | C2: 90000 | D2: =VLOOKUP(Tableau3[[#This Row],[Mois]],Analyses!C:D,2,0) -> 92118.79 | E2: =IF(Tableau3[[#This Row],[Chiffre d''Affaires]]<Tableau3[[#This Row],[Objectif financier]],Tableau3[[#This Row],[Chiffre d''Affaires]],"#NA") -> #NA | F2: =IF(Tableau3[[#This Row],[Chiffre d''Affaires]]>=Tableau3[[#This Row],[Objectif financier]],Tableau3[[#This Row],[Chiffre d''Affaires]],"#NA") -> 92118.79
A3: 2 | B3: févr | C3: 100000 | D3: =VLOOKUP(Tableau3[[#This Row],[Mois]],Analyses!C:D,2,0) -> 91137.05 | E3: =IF(Tableau3[[#This Row],[Chiffre d''Affaires]]<Tableau3[[#This Row],[Objectif financier]],Tableau3[[#This Row],[Chiffre d''Affaires]],"#NA") -> 91137.05 | F3: =IF(Tableau3[[#This Row],[Chiffre d''Affaires]]>=Tableau3[[#This Row],[Objectif financier]],Tableau3[[#This Row],[Chiffre d''Affaires]],"#NA") -> #NA
A4: 3 | B4: mars | C4: 100000 | D4: =VLOOKUP(Tableau3[[#This Row],[Mois]],Analyses!C:D,2,0) -> 97920.72 | E4: =IF(Tableau3[[#This Row],[Chiffre d''Affaires]]<Tableau3[[#This Row],[Objectif financier]],Tableau3[[#This Row],[Chiffre d''Affaires]],"#NA") -> 97920.72 | F4: =IF(Tableau3[[#This Row],[Chiffre d''Affaires]]>=Tableau3[[#This Row],[Objectif financier]],Tableau3[[#This Row],[Chiffre d''Affaires]],"#NA") -> #NA
A5: 4 | B5: avr | C5: 100000 | D5: =VLOOKUP(Tableau3[[#This Row],[Mois]],Analyses!C:D,2,0) -> 72320.89 | E5: =IF(Tableau3[[#This Row],[Chiffre d''Affaires]]<Tableau3[[#This Row],[Objectif financier]],Tableau3[[#This Row],[Chiffre d''Affaires]],"#NA") -> 72320.89 | F5: =IF(Tableau3[[#This Row],[Chiffre d''Affaires]]>=Tableau3[[#This Row],[Objectif financier]],Tableau3[[#This Row],[Chiffre d''Affaires]],"#NA") -> #NA
A6: 5 | B6: mai | C6: 90000 | D6: =VLOOKUP(Tableau3[[#This Row],[Mois]],Analyses!C:D,2,0) -> 70511.76 | E6: =IF(Tableau3[[#This Row],[Chiffre d''Affaires]]<Tableau3[[#This Row],[Objectif financier]],Tableau3[[#This Row],[Chiffre d''Affaires]],"#NA") -> 70511.76 | F6: =IF(Tableau3[[#This Row],[Chiffre d''Affaires]]>=Tableau3[[#This Row],[Objectif financier]],Tableau3[[#This Row],[Chiffre d''Affaires]],"#NA") -> #NA
A7: 6 | B7: juin | C7: 80000 | D7: =VLOOKUP(Tableau3[[#This Row],[Mois]],Analyses!C:D,2,0) -> 66727.4 | E7: =IF(Tableau3[[#This Row],[Chiffre d''Affaires]]<Tableau3[[#This Row],[Objectif financier]],Tableau3[[#This Row],[Chiffre d''Affaires]],"#NA") -> 66727.4 | F7: =IF(Tableau3[[#This Row],[Chiffre d''Affaires]]>=Tableau3[[#This Row],[Objectif financier]],Tableau3[[#This Row],[Chiffre d''Affaires]],"#NA") -> #NA
A8: 7 | B8: juil | C8: 95000 | D8: =VLOOKUP(Tableau3[[#This Row],[Mois]],Analyses!C:D,2,0) -> 92661.55 | E8: =IF(Tableau3[[#This Row],[Chiffre d''Affaires]]<Tableau3[[#This Row],[Objectif financier]],Tableau3[[#This Row],[Chiffre d''Affaires]],"#NA") -> 92661.55 | F8: =IF(Tableau3[[#This Row],[Chiffre d''Affaires]]>=Tableau3[[#This Row],[Objectif financier]],Tableau3[[#This Row],[Chiffre d''Affaires]],"#NA") -> #NA
A9: 8 | B9: août | C9: 90000 | D9: =VLOOKUP(Tableau3[[#This Row],[Mois]],Analyses!C:D,2,0) -> 69125.75 | E9: =IF(Tableau3[[#This Row],[Chiffre d''Affaires]]<Tableau3[[#This Row],[Objectif financier]],Tableau3[[#This Row],[Chiffre d''Affaires]],"#NA") -> 69125.75 | F9: =IF(Tableau3[[#This Row],[Chiffre d''Affaires]]>=Tableau3[[#This Row],[Objectif financier]],Tableau3[[#This Row],[Chiffre d''Affaires]],"#NA") -> #NA
A10: 9 | B10: sept | C10: 90000 | D10: =VLOOKUP(Tableau3[[#This Row],[Mois]],Analyses!C:D,2,0) -> 78253.53 | E10: =IF(Tableau3[[#This Row],[Chiffre d''Affaires]]<Tableau3[[#This Row],[Objectif financier]],Tableau3[[#This Row],[Chiffre d''Affaires]],"#NA") -> 78253.53 | F10: =IF(Tableau3[[#This Row],[Chiffre d''Affaires]]>=Tableau3[[#This Row],[Objectif financier]],Tableau3[[#This Row],[Chiffre d''Affaires]],"#NA") -> #NA
A11: 10 | B11: oct | C11: 80000 | D11: =VLOOKUP(Tableau3[[#This Row],[Mois]],Analyses!C:D,2,0) -> 87136.37 | E11: =IF(Tableau3[[#This Row],[Chiffre d''Affaires]]<Tableau3[[#This Row],[Objectif financier]],Tableau3[[#This Row],[Chiffre d''Affaires]],"#NA") -> #NA | F11: =IF(Tableau3[[#This Row],[Chiffre d''Affaires]]>=Tableau3[[#This Row],[Objectif financier]],Tableau3[[#This Row],[Chiffre d''Affaires]],"#NA") -> 87136.37
A12: 11 | B12: nov | C12: 80000 | D12: =VLOOKUP(Tableau3[[#This Row],[Mois]],Analyses!C:D,2,0) -> 75659.86 | E12: =IF(Tableau3[[#This Row],[Chiffre d''Affaires]]<Tableau3[[#This Row],[Objectif financier]],Tableau3[[#This Row],[Chiffre d''Affaires]],"#NA") -> 75659.86 | F12: =IF(Tableau3[[#This Row],[Chiffre d''Affaires]]>=Tableau3[[#This Row],[Objectif financier]],Tableau3[[#This Row],[Chiffre d''Affaires]],"#NA") -> #NA
A13: 12 | B13: déc | C13: 110000 | D13: =VLOOKUP(Tableau3[[#This Row],[Mois]],Analyses!C:D,2,0) -> 89270.59 | E13: =IF(Tableau3[[#This Row],[Chiffre d''Affaires]]<Tableau3[[#This Row],[Objectif financier]],Tableau3[[#This Row],[Chiffre d''Affaires]],"#NA") -> 89270.59 | F13: =IF(Tableau3[[#This Row],[Chiffre d''Affaires]]>=Tableau3[[#This Row],[Objectif financier]],Tableau3[[#This Row],[Chiffre d''Affaires]],"#NA") -> #NA

Sheet Analyses
A2: Chiffre d'Affaires Global | C2: Mois | D2: Chiffre d'Affaires | F2: Sémaine de l'année | G2: Chiffre d'Affaires | I2: Clients | J2: Chiffre d'Affaires | L2: Produits | M2: Chiffre d'Affaires | O2: Région | P2: Chiffre d'Affaires | R2: Pays | S2: Chiffre d'Affaires
A3: 982844.26 | C3: janv | D3: 92118.79 | F3: 1 | G3: 5179.59 | I3: client33 | J3: 60929.15 | L3: Produit10 | M3: 34991.64 | O3: Afrique | P3: 228837.42 | R3: Afrique du Sud | S3: 33252.92
C4: févr | D4: 91137.05 | F4: 2 | G4: 21116.73 | I4: client22 | J4: 45112.95 | L4: Produit42 | M4: 38232 | O4: Amérique | P4: 294506.85 | R4: Algérie | S4: 23913.72 | U4: =OFFSET(R2,1,0,COUNTA(R3:R42),2) -> Afrique du Sud | V4: 33252.92
C5: mars | D5: 97920.72 | F5: 3 | G5: 14261.19 | I5: client23 | J5: 43062.83 | L5: Produit05 | M5: 38591.28 | O5: Asie | P5: 187387.62 | R5: Allemagne | S5: 33187.04 | U5: Algérie | V5: 23913.72
A6: =OFFSET(A2,1,0,1,1) -> 982844.26 | C6: avr | D6: 72320.89 | F6: 4 | G6: 11433.2 | L6: Produit21 | M6: 39659.76 | O6: Europe | P6: 272112.37 | R6: Argentine | S6: 43062.83 | U6: Allemagne | V6: 33187.04
C7: mai | D7: 70511.76 | F7: 5 | G7: 33727.55 | L7: Produit32 | M7: 40883.04 | R7: Belgique | S7: 16353.01 | U7: Argentine | V7: 43062.83
C8: juin | D8: 66727.4 | F8: 6 | G8: 34794.82 | I8: =I3 -> client33 | J8: =J3 -> 60929.15 | L8: Produit22 | M8: 41055.3 | R8: Brésil | S8: 39653.93 | U8: Belgique | V8: 16353.01
C9: juil | D9: 92661.55 | F9: 7 | G9: 32107.1 | I9: =I4 -> client22 | J9: =J4 -> 45112.95 | L9: Produit19 | M9: 41580 | R9: Canada | S9: 45112.95 | U9: Brésil | V9: 39653.93
C10: août | D10: 69125.75 | F10: 8 | G10: 11777.67 | I10: client23 | J10: 43062.83 | L10: Produit24 | M10: 49599.36 | R10: Chili | S10: 24862.52 | U10: Canada | V10: 45112.95
C11: sept | D11: 78253.53 | F11: 9 | G11: 17571.59 | L11: Produit41 | M11: 57554.28 | R11: Colombie | S11: 35431.86 | U11: Chili | V11: 24862.52
C12: oct | D12: 87136.37 | F12: 10 | G12: 17413.3 | L12: Produit30 | M12: 57968.64 | R12: Corée du Sud | S12: 17704.34 | U12: Colombie | V12: 35431.86
C13: nov | D13: 75659.86 | F13: 11 | G13: 18811.39 | R13: Côte d'Ivoire | S13: 7541.72 | U13: Corée du Sud | V13: 17704.34
C14: déc | D14: 89270.59 | F14: 12 | G14: 29446.46 | R14: Égypte | S14: 24159.03 | U14: Côte d'Ivoire | V14: 7541.72
F15: 13 | G15: 22723.6 | L15: =L3 -> Produit10 | M15: 34991.64 | R15: Équateur | S15: 13549.7 | U15: Égypte | V15: 24159.03
F16: 14 | G16: 13729.81 | L16: Produit42 | M16: 38232 | R16: Espagne | S16: 30344.9 | U16: Équateur | V16: 13549.7
F17: 15 | G17: 27820.09 | L17: Produit05 | M17: 38591.28 | R17: États-Unis | S17: 14337.4 | U17: Espagne | V17: 30344.9
F18: 16 | G18: 9407.51 | L18: Produit21 | M18: 39659.76 | R18: Éthiopie | S18: 8394.32 | U18: États-Unis | V18: 14337.4
F19: 17 | G19: 22127.3 | L19: Produit32 | M19: 40883.04 | R19: France | S19: 26437.86 | U19: Éthiopie | V19: 8394.32
F20: 18 | G20: 11809.4 | L20: Produit22 | M20: 41055.3 | R20: Ghana | S20: 31336.23 | U20: France | V20: 26437.86
F21: 19 | G21: 12750.54 | L21: Produit19 | M21: 41580 | R21: Inde | S21: 5519.83 | U21: Ghana | V21: 31336.23
F22: 20 | G22: 19691.76 | L22: Produit24 | M22: 49599.36 | R22: Indonésie | S22: 15829.48 | U22: Inde | V22: 5519.83
F23: 21 | G23: 19171.71 | L23: Produit41 | M23: 57554.28 | R23: Italie | S23: 6251.4 | U23: Indonésie | V23: 15829.48
F24: 22 | G24: 11617.86 | L24: Produit30 | M24: 57968.64 | R24: Japon | S24: 10923.66 | U24: Italie | V24: 6251.4
F25: 23 | G25: 17000.62 | R25: Malaisie | S25: 13827.74 | U25: Japon | V25: 10923.66
F26: 24 | G26: 15273.35 | R26: Maroc | S26: 24311.18 | U26: Malaisie | V26: 13827.74
F27: 25 | G27: 23043.47 | R27: Mexique | S27: 14192.22 | U27: Maroc | V27: 24311.18
F28: 26 | G28: 13593.79 | R28: Nigeria | S28: 14222.83 | U28: Mexique | V28: 14192.22
F29: 27 | G29: 13197.89 | R29: Pakistan | S29: 34502.94 | U29: Nigeria | V29: 14222.83
F30: 28 | G30: 13311.34 | R30: Pays-Bas | S30: 30826.78 | U30: Pakistan | V30: 34502.94
F31: 29 | G31: 26662.81 | R31: Pérou | S31: 31495.42 | U31: Pays-Bas | V31: 30826.78
F32: 30 | G32: 15652.32 | R32: Philippines | S32: 60929.15 | U32: Pérou | V32: 31495.42
F33: 31 | G33: 27172.4 | R33: Pologne | S33: 34247.45 | U33: Philippines | V33: 60929.15
F34: 32 | G34: 6991.1 | R34: Royaume-Uni | S34: 39185.31 | U34: Pologne | V34: 34247.45
F35: 33 | G35: 17406.18 | R35: Sénégal | S35: 21712.2 | U35: Royaume-Uni | V35: 39185.31
F36: 34 | G36: 10403.35 | R36: Suède | S36: 16605.59 | U36: Sénégal | V36: 21712.2
F37: 35 | G37: 29524.29 | R37: Suisse | S37: 38673.03 | U37: Suède | V37: 16605.59
F38: 36 | G38: 14336.82 | R38: Tunisie | S38: 39993.27 | U38: Suisse | V38: 38673.03
F39: 37 | G39: 15584.3 | R39: Venezuela | S39: 32808.02 | U39: Tunisie | V39: 39993.27
F40: 38 | G40: 13437.32 | R40: Vietnam | S40: 28150.48 | U40: Venezuela | V40: 32808.02
F41: 39 | G41: 30057.11 | U41: Vietnam | V41: 28150.48
F42: 40 | G42: 17799.13
F43: 41 | G43: 25449.57
F44: 42 | G44: 14658.5
F45: 43 | G45: 19795.28
F46: 44 | G46: 17458.1
F47: 45 | G47: 17068.96
F48: 46 | G48: 16104.11
F49: 47 | G49: 16390.38
F50: 48 | G50: 25601.35
F51: 49 | G51: 7322.39
F52: 50 | G52: 18755.54
F53: 51 | G53: 15496.2
F54: 52 | G54: 24337.02
F55: 53 | G55: 25469.1

Sheet Tableau de Bord
